{"text_format":"1","workbook":"xlsx","n_sheets":14,"sheets":["MATRIZ DE INDICADORES","ABS-1","ABS-2","Hoja1","Hoja2","ABS-4","HOJA-4","ABS-9","HOJA-9","ABS-10","HOJA-10","ABS-11","ACTUALIZACIONES","ITEM"],"not_rendered":{"charts":5,"images":6,"macros":1,"external_links":5,"defined_names":18,"comments":1,"pivot_tables":0},"unopened":[],"bounds":{"document_bytes":16777216,"sheet_cells":100000,"rows_first":2000,"rows_last":500,"rows_between":2000,"halvings":0,"cell_chars":16384,"cell_head_chars":4096},"cells_cut":0,"cells_raw":0,"read":"whole","date_system":"1900"}

{"sheet":"MATRIZ DE INDICADORES","index":0,"n_rows":72,"n_cols":21,"rows_kept":72,"cut":false,"hidden":false,"merged":[[46,6,51,6],[12,5,51,5],[12,4,51,4],[12,3,51,3],[12,2,51,2],[46,11,51,11],[46,10,51,10],[46,8,51,8],[46,9,51,9],[46,7,51,7],[41,20,45,20],[41,18,45,18],[41,19,45,19],[41,6,45,6],[41,7,45,7],[41,8,45,8],[41,9,45,9],[41,10,45,10],[41,11,45,11],[12,17,51,17],[46,18,51,20],[26,20,31,20],[26,11,31,11],[32,20,36,20],[32,6,36,6],[32,7,36,7],[56,1,56,20],[57,1,57,20],[2,18,2,20],[3,18,3,20],[4,18,4,20],[9,1,10,20],[6,16,7,17],[12,18,18,18],[12,19,18,19],[12,20,18,20],[12,11,18,11],[12,10,18,10],[12,9,18,9],[12,8,18,8],[12,7,18,7],[26,19,31,19],[1,18,1,20],[1,1,4,2],[1,3,1,17],[2,3,2,17],[3,3,4,17],[12,1,51,1],[19,19,25,19],[19,20,25,20],[19,11,25,11],[19,10,25,10],[19,9,25,9],[26,8,31,8],[26,7,31,7],[26,6,31,6],[12,6,18,6],[19,18,25,18],[19,8,25,8],[19,7,25,7],[19,6,25,6],[26,18,31,18],[32,19,36,19],[37,19,40,19],[37,20,40,20],[37,6,40,6],[37,7,40,7],[26,10,31,10],[26,9,31,9],[37,8,40,8],[37,9,40,9],[37,10,40,10],[37,11,40,11],[32,18,36,18],[32,8,36,8],[32,9,36,9],[32,10,36,10],[32,11,36,11],[37,18,40,18]]}
[]
[null,null,null,"MACROPROCESO ESTRATÉGICO",null,null,null,null,null,null,null,null,null,null,null,null,null,null,"CÓDIGO: ESGr027"]
[null,null,null,"PROCESO GESTIÓN SISTEMAS INTEGRADOS - CALIDAD",null,null,null,null,null,null,null,null,null,null,null,null,null,null,"VERSIÓN: 8"]
[null,null,null,"MATRIZ DE MEDICIÓN Y SEGUIMIENTO A LOS PROCESOS DE GESTIÓN",null,null,null,null,null,null,null,null,null,null,null,null,null,null,"VIGENCIA: 2023-07-28"]
[null,null,null,null,null,null,null,null,null,null,null,null,null,null,null,null,null,null,"PÁGINA: 1 de 8"]
[]
[null,null,null,null,null,null,null,null,null,null,null,null,null,null,null,null,"FECHA DE ACTUALIZACIÓN:",null,"AÑO","MES","DÍA"]
[null,null,null,null,null,null,null,null,null,null,null,null,null,null,null,null,null,null,2023,8,11]
[]
[null,"ALINEACIÓN DE LOS INDICADORES CON LOS DOCUMENTOS ESTRATÉGICOS Y LOS OBJETIVOS DE CALIDAD"]
[]
[null,"PROCESO GESTIÓN","FRENTES DEL PLAN ESTRATÉGICO","LINEAMIENTOS DE LA POLÍTICA DE CALIDAD","OBJETIVOS DE CALIDAD","OBJETIVO GENERAL DEL PROCESO","OBJETIVOS ESPECÍFICOS","NOMBRE INDICADOR","FÓRMULA","TIPO DE INDICADOR","SEGUIMIENTO MEDICIÓN","META","ACTIVIDAD","RESPONSABLE DE LA ACTIVIDAD","¿QUÉ RECURSOS SE REQUIEREN?","FECHA EJECUCIÓN DE ACTIVIDADES","EVIDENCIA","¿CUÁNDO FINALIZARÁ?","RESULTADO ","NIVEL OBTENIDO","ACCESO"]
[null,"Bienes y Servicios","Frente Estratégico VI: Organización universitaria inteligente con alma y corazón","Consolidación de una organización universitaria inteligente con alma y corazón","5. Mejorar continuamente el desempeño de los procesos a través de la implementación de buenas prácticas institucionales y de la aplicación de los mecanismos dispuestos por la Universidad de Cundinamarca, para la constitución de  una organización universitaria inteligente con alma y corazón","Gestionar oportunamente la adquisición, ingreso, control, custodia y promoción de los bienes muebles e inmuebles y/o servicios y la administración, mantenimiento de la planta física y parque automotor con el fin de atender los requerimientos de los diferentes procesos enfocados a optimizar el servicio a la comunidad académica.","Realizar la toma física  del 95% de los inventarios programados en el Cronograma en las distintas dependencias de la Universidad, en su sede, seccionales y extensiones, durante los 4 trimestres de la actual vigencia.","ABS-1 Toma física de inventarios","Toma física ejecutada*100/Toma física programada","Eficacia","TRIMESTRAL",0.95,"Proyectar el cronograma de la toma física de inventarios","Jefatura de Almacén","Recurso Humano\nOffice 365","Ene - Feb  del 2023","Cronograma proyectado para la vigencia 2023",2023,0.86,"BUENO","ABS-1"]
[null,null,null,null,null,null,null,null,null,null,null,null,"Solicitar la publicación del cronograma de toma física de inventarios  en el Módulo de Contratación, link de inventarios","Jefatura de Almacén\nOficina de Comunicaciones","Recurso Humano\nOffice 365","Ene - Feb del 2023","Cronograma para la vigencia del 2023. EPIF001 en la página institucional, módulo de contratación, link de inventarios"]
[null,null,null,null,null,null,null,null,null,null,null,null,"Enviar correos electrónicos a los Jefes y Directores de Proceso para notificar la semana en la cual se hará la toma física de inventarios","Jefatura de Almacén","Recurso Humano\nOffice 365","Vigencia 2023\n(de acuerdo al cronograma)","Correos electrónicos enviados\nAdjunto el ABSr050 (Toma física de inventarios, registro del ultimo inventario actualizado en el sistema)"]
[null,null,null,null,null,null,null,null,null,null,null,null,"Ejecutar la toma física de los inventarios de acuerdo al cronograma o a solicitud","Gestor de Almacén","Recurso Humano\nOffice 365","Vigencia 2023\n(de acuerdo al cronograma)","Informe Toma Física de Inventarios ABSr139 y/o Acta ABSr036 según aplique."]
[null,null,null,null,null,null,null,null,null,null,null,null,"Actualizar los inventarios de los elementos y equipos en la plataforma","Gestor de Almacén","Recurso Humano\nOffice 365","Vigencia 2023\n(de acuerdo al cronograma)","Inventario actualizado en la plataforma de Gestasoft"]
[null,null,null,null,null,null,null,null,null,null,null,null,"Medir los resultados de la Toma física de inventarios","Jefatura de Almacén","Recurso Humano\nOffice 365","Mar-23\nJun- 23\nSep-23\nDic-23","Medición del indicador"]
[null,null,null,null,null,null,null,null,null,null,null,null,"Implementar acciones según los resultados","Jefatura de Almacén","Recurso Humano\nOffice 365","Según la necesidad","Ficha técnica de indicador - Acción formulada"]
[null,null,null,null,null,null,"Oportunidad en la entrega de la totalidad de los suministros de papelería requeridos por las dependencias de la Universidad, en la sede Fusagasugá, y sus extensiones Soacha, Facatativá, Chía y Zipaquirá en los 4 trimestres del 2023.","ABS-2 Oportunidad en la entrega de suministros de papelería","(# Pedidos entregados ≤ 15 días hábiles (desde el cierre de plataforma SIS) * 100)/ # Total de Pedidos","Eficiencia","TRIMESTRAL",1,"Realizar la proyección de las necesidades de los insumos de papelería ","Jefatura de Almacén","Recurso Humano\nOffice 365","IIPA 2022","Proyección gastos de funcionamiento",null,1,"EXCELENTE","ABS-2"]
[null,null,null,null,null,null,null,null,null,null,null,null,"Realizar la solicitud de los insumos de papelería ","Jefatura de Almacén","Recurso Humano\nOffice 365\nPresupuesto asignado","IPA2023 (De acuerdo a la necesidad)","ABS proyectado"]
[null,null,null,null,null,null,null,null,null,null,null,null,"Aperturar la plataforma de Gestasoft  - Almacén ","Jefatura de Almacén","Recurso Humano\nPlataforma Gestasoft","Ene-23\nAbr-23\nJul-23\nOct-23","Correos informando la apertura de la plataforma"]
[null,null,null,null,null,null,null,null,null,null,null,null,"Verificar de los pedidos para pre aprobación","Jefatura de Almacén","Recurso Humano\nPlataforma Gestasoft\nOffice 365","15 días hábiles después de cerrada la plataforma","ABSr014"]
[null,null,null,null,null,null,null,null,null,null,null,null,"Entregar los insumos de papelería y toners","Gestor de Almacén","Recurso Humano\nPlataforma Gestasoft\nOffice 365","15 días hábiles después de cerrada la plataforma","ABSr014 firmado"]
[null,null,null,null,null,null,null,null,null,null,null,null,"Medir los resultados de la Oportunidad en la entrega de suministros de papelería","Jefatura de Almacén","Recurso Humano\nOffice 365","Mar-23\nJun- 23\nSep-23\nDic-23","Medición del indicador"]
[null,null,null,null,null,null,null,null,null,null,null,null,"Implementar acciones según los resultados","Jefatura de Almacén","Recurso Humano\nOffice 365","Según la necesidad","Ficha técnica de indicador - Acción formulada"]
[null,null,null,null,null,null,"Lograr que el total de las compras de contratación directa en un 80% sean atendidas en un tiempo menor a 25 días, dividido por trimestres a corte del 2023.","ABS-4 Oportunidad de la compra","(Total compras  de contratación directa atendidas en tiempo menor a 25 días) *100/Total de compras de contratación directa","Eficiencia","TRIMESTRAL",0.8,"Planificar con el grupo de trabajo la asignación del CDP ","Jefatura de Compras","Recurso Humano\nOffice 365","Durante toda la Vigencia","En el Sistema de Academusoft de la asignación del ABS a cada gestor.\nPor correo electrónico se le confirma al gestor el CDP.",null,0.84,"EXCELENTE","ABS-4"]
[null,null,null,null,null,null,null,null,null,null,null,null,"Realizar seguimiento del proceso de adquisición de Bienes y Servicios","Jefatura de Compras","Recurso Humano\nOffice 365","Durante toda la Vigencia","Avances del procedimiento en Integradoc"]
[null,null,null,null,null,null,null,null,null,null,null,null,"Ajustar cronograma en caso de presentar demoras en el proceso","Gestores de la Oficina de Compras","Recurso Humano\nOffice 365","Durante toda la Vigencia","Cronograma (ABSr143)"]
[null,null,null,null,null,null,null,null,null,null,null,null,"Notificar el contrato suscrito y perfeccionado","Gestores de la Oficina de Compras","Recurso Humano\nOffice 365","Durante toda la Vigencia","Envío a través de Integradoc y por correo electrónico, del acervo documental del contrato"]
[null,null,null,null,null,null,null,null,null,null,null,null,"Medir los resultados de Oportunidad de la compra","Jefatura de Compras","Recurso Humano\nOffice 365","Mar-23\nJun- 23\nSep-23\nDic-23","Medición del indicador"]
[null,null,null,null,null,null,null,null,null,null,null,null,"Implementar acciones según los resultados","Jefatura de Compras","Recurso Humano\nOffice 365","Según la necesidad","Ficha técnica de indicador - Acción formulada"]
[null,null,null,null,null,null,"Verificar que el total de los proveedores evaluados, el 95% estén calificados por encima del 70% en la reevaluación a proveedores que se realiza semestralmente a corte del 2023","ABS-9 Reevaluación de proveedores Ucundinamarca","Total proveedores calificados mayor a 70 *100 /Total proveedores","Eficacia","SEMESTRAL",0.95,"Revisar los contratos que se han ejecutado, cuales allegaron la reevaluación","Gestor que estuvo a cargo del proceso de Contratación","Recurso Humano\nOffice 365","Vigencia 2023","Alertas generadas en Integradoc\nPor correo electrónico avisos en caso de presentar demoras",null,0.98,"EXCELENTE","ABS-9"]
[null,null,null,null,null,null,null,null,null,null,null,null,"Verificar si la totalidad de la vigencia anterior (2022) culminados, tengan la reevaluación de los proveedores.","Gestor que estuvo a cargo del proceso de Contratación","Recurso Humano\nOffice 365","Vigencia 2023","Reporte que arroja Integradoc "]
[null,null,null,null,null,null,null,null,null,null,null,null,"Validar si quedan pendientes revaluaciones de los contratos ya culminados","Gestor que estuvo a cargo del proceso de Contratación","Recurso Humano\nOffice 365","Vigencia 2023","Reporte que arroja Integradoc "]
[null,null,null,null,null,null,null,null,null,null,null,null,"Medir los resultados de la Reevaluación de proveedores Ucundinamarca","Jefatura de Compras","Recurso Humano\nOffice 365","Jun- 23\nDic-23","Medición del indicador"]
[null,null,null,null,null,null,null,null,null,null,null,null,"Implementar acciones según los resultados","Jefatura de Compras","Recurso Humano\nOffice 365","Según la necesidad","Ficha técnica de indicador - Acción formulada"]
[null,null,null,null,null,null,"Verificar del total de los procesos finalizados con o sin éxito, no supere el 35%  que se dan por desiertos de acuerdo a la trazabilidad trimestral durante el 2023.","ABS-10 Tasa de procesos desiertos","Número procesos que se dan por desiertos durante el periodo * 100 / Total de procesos finalizados con o sin éxito en el periodo","Eficacia","TRIMESTRAL",0.35,"Realizar el seguimiento del proceso precontractual generado por el solicitante","Gestores de la Oficina de Compras","Recurso Humano\nOffice 365","Vigencia 2023","Correos electrónicos enviados al área solicitante y/o registros de asistencia que confirmen la socialización de la información",null,0.35,"BUENO","ABS-10"]
[null,null,null,null,null,null,null,null,null,null,null,null,"Acompañar de manera técnica y jurídica en cada una de las etapas precontractuales a las diferentes áreas de la Universidad.","Gestores de la Oficina de Compras\nGestor Jurídico de la Oficina de Compras","Recurso Humano\nOffice 365","Vigencia 2023","Documentos generados y publicados en la página Web de la Universidad."]
[null,null,null,null,null,null,null,null,null,null,null,null,"Medir los resultados de la tasa de procesos desiertos","Jefatura de Compras","Recurso Humano\nOffice 365","Mar-23\nJun- 23\nSep-23\nDic-23","Medición del indicador"]
[null,null,null,null,null,null,null,null,null,null,null,null,"Implementar acciones según los resultados","Jefatura de Compras","Recurso Humano\nOffice 365","Según la necesidad","Ficha técnica de indicador - Acción formulada"]
[null,null,null,null,null,null,"Verificar  la disponibilidad del 70%  del parque automotor (buses), en cuanto al cumplimiento de las salidas programadas por la academia de acuerdo al cronograma de prácticas académicas y salidas formativas correspondiente a los dos periodos académicos.","ABS-11 Cumplimiento a la planificación de salidas programadas por la academia","# total de salidas académicas programadas atendidas * 100 / \n#total de salidas académicas programadas - # salidas académicas canceladas.","Eficacia","SEMESTRAL",0.7,"Revisar disponibilidad del parque automotor de acuerdo a los requerimientos realizados por la Academia","Academia\nComité de prácticas\nJefatura de Recursos Físicos y Servicios Generales","Recurso Humano\nOffice 365","Según la necesidad","Ficha Transporte (a partir II semestre 2023) de acuerdo a las actividades que se radican a la oficina de RF y SG",null,1,"EXCELENTE","ABS-11"]
[null,null,null,null,null,null,null,null,null,null,null,null,"Asignar el vehículo y el conductor para la práctica académica y/o experiencia formativa","Gestor asignado - Oficina de RF y SG","Recurso Humano\nOffice 365","Según la necesidad","Envió de correo electrónico"]
[null,null,null,null,null,null,null,null,null,null,null,null,"Entregar anticipos (peaje - combustible) y viáticos al conductor","Gestor asignado - Oficina de RF y SG","Recurso Humano\nOffice 365","Según la necesidad","Boucher de los peajes. \nHabilitación del chip para el suministro del combustible."]
[null,null,null,null,null,null,null,null,null,null,null,null,"Medir los resultados del Cumplimiento a la planificación de salidas programadas por la academia","Jefatura de Recursos Físicos y Servicios Generales","Recurso Humano\nOffice 365","Jun- 23\nDic-23","Medición del indicador"]
[null,null,null,null,null,null,null,null,null,null,null,null,"Implementar acciones según los resultados","Jefatura de Recursos Físicos y Servicios Generales","Recurso Humano\nOffice 365","Según la necesidad","Ficha técnica de indicador - Acción formulada"]
[null,null,null,null,null,null,"Verificar la ejecución de los mantenimientos a la infraestructura física en el 90% de las actividades ejecutadas sobre las planificadas de acuerdo al Cronograma de Mantenimiento de Planta Física durante los dos periodos académicos de la presente vigencia.","Mantenimiento a infraestructura física\n(Plan de acción)","Indicador que se lleva por plan de acción","Indicador que se lleva por plan de acción","TRIMESTRAL",0.9,"Recopilar las necesidades de los elementos necesarios para el mantenimiento y la Inspección de la planta física","Jefatura de Recursos Físicos y Servicios Generales\nGestor asignado de la Oficina de RF y SG","Recurso Humano\nOffice 365","Inicio de Vigencia","ABSr082\nABSr080",null,"Indicador que se lleva por plan de acción"]
[null,null,null,null,null,null,null,null,null,null,null,null,"Planificar las actividades del mantenimiento de la Planta física en el Cronograma de Mantenimiento","Jefatura de Recursos Físicos y Servicios Generales\nGestor asignado de la Oficina de RF y SG","Recurso Humano\nOffice 365","Vigencia 2023","Cronograma de Mantenimiento Planta Física"]
[null,null,null,null,null,null,null,null,null,null,null,null,"Ejecutar las actividades del mantenimiento de planta física","Gestor asignado de la Oficina de RF y SG","Recurso Humano\nOffice 365","Vigencia 2023","Cronograma de Mantenimiento Planta Física (cumplimiento)"]
[null,null,null,null,null,null,null,null,null,null,null,null,"Realizar seguimiento a las actividades realizadas de mantenimiento a la planta física","Gestor asignado de la Oficina de RF y SG","Recurso Humano\nOffice 365","Vigencia 2023","ABSr120 \nABSr079"]
[null,null,null,null,null,null,null,null,null,null,null,null,"Medir los resultados del Mantenimiento a infraestructura física","Jefatura de Recursos Físicos y Servicios Generales","Recurso Humano\nOffice 365","Mar-23\nJun- 23\nSep-23\nDic-23","Medición del indicador"]
[null,null,null,null,null,null,null,null,null,null,null,null,"Implementar acciones según los resultados","Jefatura de Recursos Físicos y Servicios Generales","Recurso Humano\nOffice 365","Según la necesidad","Ficha técnica de indicador - Acción formulada"]
[]
[]
[]
[]
[null,"Diagonal 18 No. 20-29 Fusagasugá – Cundinamarca\nTeléfono (601)  8281483 Línea Gratuita 018000180414\nwww.ucundinamarca.edu.co   E-mail:  info@ucundinamarca.edu.co\nNIT: 890.680.062-2                                                                             "]
[null,"Documento controlado por el Sistema de Gestión de la Calidad\nAsegúrese que corresponde a la última versión consultando el Portal Institucional"]
[]
[]
[]
[]
[]
[]
[]
[]
[null,null,"LINEAMIENTOS DE LA POLÍTICA DE CALIDAD","OBJETIVOS DE CALIDAD","ALINEACIÓN DE LOS INDICADORES CON LOS DOCUMENTOS ESTRATÉGICOS Y LOS OBJETIVOS DE CALIDAD"]
[null,null,"LINEAMIENTOS DE LA POLÍTICA DE SEGURIDAD Y SALUD EN EL TRABAJO","OBJETIVOS DE SEGURIDAD Y SALUD EN EL TRABAJO","ALINEACIÓN DE LOS INDICADORES CON LOS DOCUMENTOS ESTRATÉGICOS Y LOS OBJETIVOS DE SEGURIDAD Y SALUD EN EL TRABAJO"]
[null,null,"LINEAMIENTOS DE LA POLÍTICA DE AMBIENTAL","OBJETIVOS DE AMBIENTAL","ALINEACIÓN DE LOS INDICADORES CON LOS DOCUMENTOS ESTRATÉGICOS Y LOS OBJETIVOS DE AMBIENTAL"]
[null,null,"LINEAMIENTOS DE LA POLÍTICA DE SEGURIDAD DE LA INFORMACIÓN","OBJETIVOS DE SEGURIDAD DE LA INFORMACIÓN","ALINEACIÓN DE LOS INDICADORES CON LOS DOCUMENTOS ESTRATÉGICOS Y LOS OBJETIVOS DE SEGURIDAD DE LA INFORMACIÓN"]
[null,null,"LINEAMIENTOS DE LA POLÍTICA DE SEGURIDAD DE ANTISOBORNO","OBJETIVOS DE SEGURIDAD DE ANTISOBORNO","ALINEACIÓN DE LOS INDICADORES CON LOS DOCUMENTOS ESTRATÉGICOS Y LOS OBJETIVOS DE SEGURIDAD DE ANTISOBORNO"]
[null,null,"LINEAMIENTOS DE LA POLÍTICA DE LA CONCILIACIÓN DE LA VIDA PERSONAL, FAMILIAR Y LABORAL","OBJETIVOS DE LA CONCILIACIÓN DE LA VIDA PERSONAL, FAMILIAR Y LABORAL","ALINEACIÓN DE LOS INDICADORES CON LOS DOCUMENTOS ESTRATÉGICOS Y LOS OBJETIVOS DE LA CONCILIACIÓN DE LA VIDA PERSONAL, FAMILIAR Y LABORAL"]

{"sheet":"ABS-1","index":1,"n_rows":96,"n_cols":15,"rows_kept":96,"cut":false,"hidden":false,"merged":[[1,1,3,2],[4,2,7,3],[4,4,4,11],[4,12,4,14],[5,4,5,11],[5,12,5,14],[6,4,7,11],[6,12,6,14],[7,12,7,14],[15,2,15,14],[8,2,8,14],[9,2,10,14],[11,2,11,3],[11,4,11,7],[11,8,11,9],[11,10,11,14],[12,2,12,3],[12,4,12,14],[13,2,13,3],[13,4,13,14],[14,2,14,14],[16,15,17,15],[17,2,18,3],[17,4,17,5],[17,6,17,10],[17,11,18,12],[17,13,18,14],[18,4,18,5],[18,6,18,10],[16,2,16,3],[16,4,16,6],[16,7,16,8],[16,9,16,10],[16,11,16,12],[16,13,16,14],[19,2,21,3],[19,4,21,6],[19,7,21,8],[19,9,21,10],[19,11,19,14],[22,13,23,14],[23,2,23,3],[23,4,23,6],[25,2,25,14],[26,2,42,8],[26,9,26,14],[42,9,42,14],[22,2,22,3],[22,4,22,6],[22,7,23,8],[22,9,23,10],[22,11,23,12],[53,2,53,5],[53,6,53,9],[53,10,53,14],[26,15,27,15],[27,9,32,14],[33,9,33,14],[34,9,39,14],[40,9,40,14],[41,9,41,14],[44,2,44,14],[51,2,51,14],[52,2,52,5],[52,6,52,9],[52,10,52,14],[54,2,54,5],[54,6,54,9],[54,10,54,14],[55,2,55,5],[55,6,55,9],[55,10,55,14],[56,2,56,5],[56,6,56,9],[56,10,56,14],[57,2,57,5],[57,6,57,9],[57,10,57,14]]}
[]
[null,"      REGRESAR"]
[]
[]
[null,null,null,null,"MACROPROCESO ESTRATÉGICO",null,null,null,null,null,null,null,"CÓDIGO: ESGr027"]
[null,null,null,null,"PROCESO GESTIÓN SISTEMAS INTEGRADOS",null,null,null,null,null,null,null,"VERSIÓN: 8"]
[null,null,null,null,"MATRIZ DE MEDICIÓN Y SEGUIMIENTO A LOS PROCESOS DE GESTIÓN",null,null,null,null,null,null,null,"VIGENCIA: 2023-07-28"]
[null,null,null,null,null,null,null,null,null,null,null,null,"PÁGINA: 2 de 8"]
[]
[null,null,"FICHA DE INDICADOR"]
[]
[null,null,"MACROPROCESO",null,"Apoyo",null,null,null,"NOMBRE DEL INDICADOR",null,"Toma física de inventarios"]
[null,null,"PROCESO GESTIÓN",null,"Bienes y Servicios"]
[null,null,"RESPONSABLE DE MEDICIÓN",null,"Jefe de la Oficina de Almacén"]
[]
[null,null,"1. COMPORTAMIENTO DE INDICADOR"]
[null,null,"CLASIFICACIÓN DE LA MEDICIÓN",null,1,null,null,"TIPO DE INDICADOR",null,"Eficacia",null,"META",null,0.95]
[null,null,"FORMULA",null,"NUMERADOR",null,"Toma Física ejecutada *100",null,null,null,null,"UNIDAD DE MEDIDA",null,"Porcentaje"]
[null,null,null,null,"DENOMINADOR",null,"Toma Física programada"]
[null,null,"TENDENCIA",null,"Positiva",null,null,"NIVEL DE SEGREGACIÓN *",null,"No Aplica",null,"ESCALA"]
[null,null,null,null,null,null,null,null,null,null,null,"Deficiente","Aceptable","Bueno","Excelente"]
[null,null,null,null,null,null,null,null,null,null,null,"0% - 69,9%","70% - 84,9%"," 85% - 95%"," 95,1% - 100%"]
[null,null,"ORIGEN DE DATOS NUMERADOR",null," ABSr139 - Informe toma Física de inventarios",null,null,"FRECUENCIA DE LA MEDICIÓN",null,"TRIMESTRAL",null,"FRECUENCIA DE RESULTADO",null,"TRIMESTRAL"]
[null,null,"ORIGEN DE DATOS DENOMINADOR",null,"EPIr001 - Cronograma para tomas físicas"]
[]
[null,null,"RESULTADOS"]
[null,null,null,null,null,null,null,null,null,"ANÁLISIS DE DATOS"]
[null,null,null,null,null,null,null,null,null,"PRIMER TRIMESTRE: Se realizan verificación de 15 inventarios de conformidad con el cronograma de tomas físicas de inventario, en dónde se implemento el informe de inventario con la finalidad de informar el estado de los mismos para que sean tomadas las acciones a mejorar por parte de los responsables; Durante el ejercicio se presento novedad frente a la devolución de acta de inventario de la Dirección de Planeación Institucional.\n\nSEGUNDO TRIMESTRE: En referencia a las tomas físicas de inventario de conformidad con el cronograma de inventario EPIr 001 V_6, se realizaron un total de 16 para el segundo trimestre, dando cumplimiento a lo proyectado.\n\nTERCER TRIMESTRE: A corte 30 de septiembre se dio cumplimiento a la toma física de inventarios de conformidad con el cronograma un total de 19.\n\nCUARTO TRIMESTRE: A corte diciembre 31 se realizaron para este trimestre un total de 6 tomas físicas de inventario de las 7 programadas, quedando pendiente la Dirección de Dirección de Control Disciplinario, dado que, no respondieron el correo para agendar horario."]
[]
[]
[]
[]
[]
[null,null,null,null,null,null,null,null,null,"ACCIÓN FORMULADA"]
[null,null,null,null,null,null,null,null,null,"PRIMER TRIMESTRE: Teniendo en cuenta la novedad presentada se realizará concientización a las áreas para que el procedimiento sea más fluido y dar cumplimiento al procedimiento. \n\nSEGUNDO TRIMESTRE: Verificar conforme a las observaciones realizadas a los diferentes procesos el seguimiento a la subsanabilidad de novedades.\n\nTERCER TRIMESTRE: Seguir realizando el seguimiento con los dueños del proceso para subsanar todas las novedades.\n\nCUARTO TRIMESTRE: Agotar por los diferentes medios de comunicación la disponibilidad de los procesos para la ejecución de la tarea plasmada dentro del cronograma de inventarios."]
[]
[]
[]
[]
[]
[null,null,null,null,null,null,null,null,null,"RESPONSABLE "]
[null,null,null,null,null,null,null,null,null,{"$f":"E14","v":"Jefe de la Oficina de Almacén"}]
[]
[]
[null,null,"PERIODO DE EVALUACIÓN"]
[null,null,"MES",{"$f":"IF(J23=\"MENSUAL\",\"ENERO\",IF(J23=\"TRIMESTRAL\",\"MARZO\",IF(J23=\"SEMESTRAL\",\"JUNIO\",IF(J23=\"ANUAL\",YEAR(TODAY()),\"\"))))","v":"MARZO"},{"$f":"IF(J23=\"MENSUAL\",\"FEBRERO\",IF(J23=\"TRIMESTRAL\",\"JUNIO\",IF(J23=\"SEMESTRAL\",\"DICIEMBRE\",\"\")))","v":"JUNIO"},{"$f":"IF(J23=\"MENSUAL\",\"MARZO\",IF(J23=\"TRIMESTRAL\",\"SEPTIEMBRE\",\"\"))","v":"SEPTIEMBRE"},{"$f":"IF(J23=\"MENSUAL\",\"ABRIL\",IF(J23=\"TRIMESTRAL\",\"DICIEMBRE\",\"\"))","v":"DICIEMBRE"},{"$f":"IF(J23=\"MENSUAL\",\"MAYO\",\"\")","v":""},{"$f":"IF(J23=\"MENSUAL\",\"JUNIO\",\"\")","v":""},{"$f":"IF(J23=\"MENSUAL\",\"JULIO\",\"\")","v":""},{"$f":"IF(J23=\"MENSUAL\",\"AGOSTO\",\"\")","v":""},{"$f":"IF(J23=\"MENSUAL\",\"SEPTIEMBRE\",\"\")","v":""},{"$f":"IF(J23=\"MENSUAL\",\"OCTUBRE\",\"\")","v":""},{"$f":"IF(J23=\"MENSUAL\",\"NOVIEMBRE\",\"\")","v":""},{"$f":"IF(J23=\"MENSUAL\",\"DICIEMBRE\",\"\")","v":""}]
[null,null,{"$f":"G18","v":"Toma Física ejecutada *100"},15,16,19,6]
[null,null,{"$f":"G19","v":"Toma Física programada"},15,16,19,7]
[null,null,"VALOR ",{"$f":"IFERROR(IF($E$17=1,D47/D48,IF($E$17=2,D47,\"\")),\"\")","v":1},{"$f":"IFERROR(IF($E$17=1,E47/E48,IF($E$17=2,E47,\"\")),\"\")","v":1},{"$f":"IFERROR(IF($E$17=1,F47/F48,IF($E$17=2,F47,\"\")),\"\")","v":1},0.8571428571428571,"","","","","","","",""]
[null,null,"META PONDERADA",{"$f":"IF(AND(N23=\"ANUAL\",J23=\"MENSUAL\"),N17/12,IF(AND(N23=\"ANUAL\",J23=\"TRIMESTRAL\"),N17/4,IF(AND(N23=\"ANUAL\",J23=\"SEMESTRAL\"),N17/2,IF(AND(N23=\"ANUAL\",J23=\"ANUAL\"),N17,IF(AND(N23=\"SEMESTRAL\",J23=\"MENSUAL\"),N17/6,IF(AND(N23=\"SEMESTRAL\",J23=\"TRIMESTRAL\"),N17/2,IF(AND(N23=\"SEMESTRAL\",J23=\"SEMESTRAL\"),N17,IF(AND(N23=\"SEMESTRAL\",J23=\"ANUAL\"),\"REVISAR FRECUENCIAS\",IF(AND(N23=\"TRIMESTRAL\",J23=\"MENSUAL\"),N17/3,IF(AND(N23=\"TRIMESTRAL\",J23=\"TRIMESTRAL\"),N17,IF(AND(N23=\"TRIMESTRAL\",J23=\"SEMESTRAL\"),\"REVISAR FRECUENCIAS\",IF(AND(N23=\"TRIMESTRAL\",J23=\"ANUAL\"),\"REVISAR FRECUENCIAS\",IF(AND(N23=\"MENSUAL\",J23=\"MENSUAL\"),N17,IF(AND(N23=\"MENSUAL\",J23=\"TRIMESTRAL\"),\"REVISAR FRECUENCIAS\",IF(AND(N23=\"MENSUAL\",J23=\"SEMESTRAL\"),\"REVISAR FRECUENCIAS\",IF(AND(N23=\"MENSUAL\",J23=\"ANUAL\"),\"REVISAR FRECUENCIAS\",\"\"))))))))))))))))","v":0.95},{"$f":"IF(AND(N23=\"ANUAL\",J23=\"MENSUAL\"),N17/12+D50,IF(AND(N23=\"ANUAL\",J23=\"TRIMESTRAL\"),N17/4+D50,IF(AND(N23=\"ANUAL\",J23=\"SEMESTRAL\"),N17/2+D50,IF(AND(N23=\"SEMESTRAL\",J23=\"MENSUAL\"),N17/6+D50,IF(AND(N23=\"SEMESTRAL\",J23=\"TRIMESTRAL\"),N17/2+D50,IF(AND(N23=\"SEMESTRAL\",J23=\"SEMESTRAL\"),N17,IF(AND(N23=\"TRIMESTRAL\",J23=\"MENSUAL\"),N17/3+D50,IF(AND(N23=\"TRIMESTRAL\",J23=\"TRIMESTRAL\"),N17,IF(AND(N23=\"MENSUAL\",J23=\"MENSUAL\"),N17,\"\")))))))))","v":0.95},{"$f":"IF(AND(N23=\"ANUAL\",J23=\"MENSUAL\"),N17/12+E50,IF(AND(N23=\"ANUAL\",J23=\"TRIMESTRAL\"),N17/4+E50,IF(AND(N23=\"SEMESTRAL\",J23=\"MENSUAL\"),N17/6+E50,IF(AND(N23=\"SEMESTRAL\",J23=\"TRIMESTRAL\"),N17/2,IF(AND(N23=\"TRIMESTRAL\",J23=\"MENSUAL\"),N17/3+E50,IF(AND(N23=\"TRIMESTRAL\",J23=\"TRIMESTRAL\"),N17,IF(AND(N23=\"MENSUAL\",J23=\"MENSUAL\"),N17,\"\")))))))","v":0.95},{"$f":"IF(AND(N23=\"ANUAL\",J23=\"MENSUAL\"),N17/12+F50,IF(AND(N23=\"ANUAL\",J23=\"TRIMESTRAL\"),N17/4+F50,IF(AND(N23=\"SEMESTRAL\",J23=\"MENSUAL\"),N17/6+F50,IF(AND(N23=\"SEMESTRAL\",J23=\"TRIMESTRAL\"),N17/2+F50,IF(AND(N23=\"TRIMESTRAL\",J23=\"MENSUAL\"),N17/3,IF(AND(N23=\"TRIMESTRAL\",J23=\"TRIMESTRAL\"),N17,IF(AND(N23=\"MENSUAL\",J23=\"MENSUAL\"),N17,\"\")))))))","v":0.95},{"$f":"IF(AND($N$23=\"ANUAL\",$J$23=\"MENSUAL\"),$N$17/12+G50,IF(AND(N23=\"SEMESTRAL\",J23=\"MENSUAL\"),N17/6+G50,IF(AND(N23=\"TRIMESTRAL\",J23=\"MENSUAL\"),N17/3+G50,IF(AND(N23=\"MENSUAL\",J23=\"MENSUAL\"),N17,\"\"))))","v":""},{"$f":"IF(AND($N$23=\"ANUAL\",$J$23=\"MENSUAL\"),$N$17/12+H50,IF(AND(N23=\"SEMESTRAL\",J23=\"MENSUAL\"),N17/6+H50,IF(AND(N23=\"TRIMESTRAL\",J23=\"MENSUAL\"),N17/3+H50,IF(AND(N23=\"MENSUAL\",J23=\"MENSUAL\"),N17,\"\"))))","v":""},{"$f":"IF(AND($N$23=\"ANUAL\",$J$23=\"MENSUAL\"),$N$17/12+I50,IF(AND(N23=\"SEMESTRAL\",J23=\"MENSUAL\"),N17/6,IF(AND(N23=\"TRIMESTRAL\",J23=\"MENSUAL\"),N17/3,IF(AND(N23=\"MENSUAL\",J23=\"MENSUAL\"),N17,\"\"))))","v":""},{"$f":"IF(AND($N$23=\"ANUAL\",$J$23=\"MENSUAL\"),$N$17/12+J50,IF(AND(N23=\"SEMESTRAL\",J23=\"MENSUAL\"),N17/6+J50,IF(AND(N23=\"TRIMESTRAL\",J23=\"MENSUAL\"),N17/3+J50,IF(AND(N23=\"MENSUAL\",J23=\"MENSUAL\"),N17,\"\"))))","v":""},{"$f":"IF(AND($N$23=\"ANUAL\",$J$23=\"MENSUAL\"),$N$17/12+K50,IF(AND(N23=\"SEMESTRAL\",J23=\"MENSUAL\"),N17/6+K50,IF(AND(N23=\"TRIMESTRAL\",J23=\"MENSUAL\"),N17/3+K50,IF(AND(N23=\"MENSUAL\",J23=\"MENSUAL\"),N17,\"\"))))","v":""},{"$f":"IF(AND($N$23=\"ANUAL\",$J$23=\"MENSUAL\"),$N$17/12+L50,IF(AND(N23=\"SEMESTRAL\",J23=\"MENSUAL\"),N17/6+L50,IF(AND(N23=\"TRIMESTRAL\",J23=\"MENSUAL\"),N17/3,IF(AND(N23=\"MENSUAL\",J23=\"MENSUAL\"),N17,\"\"))))","v":""},{"$f":"IF(AND($N$23=\"ANUAL\",$J$23=\"MENSUAL\"),$N$17/12+M50,IF(AND(N23=\"SEMESTRAL\",J23=\"MENSUAL\"),N17/6+M50,IF(AND(N23=\"TRIMESTRAL\",J23=\"MENSUAL\"),N17/3+M50,IF(AND(N23=\"MENSUAL\",J23=\"MENSUAL\"),N17,\"\"))))","v":""},{"$f":"IF(AND($N$23=\"ANUAL\",$J$23=\"MENSUAL\"),$N$17/12+N50,IF(AND(N23=\"SEMESTRAL\",J23=\"MENSUAL\"),N17/6+N50,IF(AND(N23=\"TRIMESTRAL\",J23=\"MENSUAL\"),N17/3+N50,IF(AND(N23=\"MENSUAL\",J23=\"MENSUAL\"),N17,\"\"))))","v":""}]
[]
[null,null,"NIVEL DE SEGREGACIÓN *"]
[null,null,"UNIDAD SEGREGADA (Ej. Facultad, Programa Académico, Área)",null,null,null,"RESULTADO",null,null,null,"ANALISIS DE DATOS SEGREGADO"]
[]
[]
[]
[]
[]
[]
[]
[]
[]
[]
[]
[]
[]
[]
[]
[]
[null,null,null,null,null,null,"Estratégico",null,null,"Eficacia"]
[null,null,null,null,null,null,"Misional",null,null,"Eficiencia"]
[null,null,null,null,null,null,"Apoyo",null,null,"Acreditación"]
[null,null,null,null,null,null,"Seguimiento, Medición, Análisis y Evaluación",null,null,"Positiva"]
[null,null,null,null,null,null,"Direccionamiento Estratégico",null,null,"Negativa"]
[null,null,null,null,null,null,"Planeación Institucional",null,null,"Por Unidad Regional"]
[null,null,null,null,null,null,"Proyectos Especiales y Relaciones Interinstitucionales",null,null,"Por Facultad"]
[null,null,null,null,null,null,"Sistemas Integrados",null,null,"Por Programa Académico"]
[null,null,null,null,null,null,"Autoevaluación y Acreditación",null,null,"Por área"]
[null,null,null,null,null,null,"Comunicaciones",null,null,"Por Laboratorio"]
[null,null,null,null,null,null,"Formación y Aprendizaje",null,null,"Otros"]
[null,null,null,null,null,null,"Ciencia, Tecnología e Innovación",null,null,"No Aplica"]
[null,null,null,null,null,null,"Interacción Social Universitaria"]
[null,null,null,null,null,null,"Bienestar Universitario"]
[null,null,null,null,null,null,"Admisiones y Registro"]
[null,null,null,null,null,null,"Graduados"]
[null,null,null,null,null,null,"Dialogando con el Mundo"]
[null,null,null,null,null,null,"Talento Humano"]
[null,null,null,null,null,null,"Jurídica"]
[null,null,null,null,null,null,"Financiera"]
[null,null,null,null,null,null,"Sistemas y Tecnología"]
[null,null,null,null,null,null,"Bienes y Servicios"]
[null,null,null,null,null,null,"Documental"]
[null,null,null,null,null,null,"Apoyo Académico"]
[null,null,null,null,null,null,"Control Interno"]
[null,null,null,null,null,null,"Control Disciplinario"]
[null,null,null,null,null,null,"Servicio de Atención al Ciudadano"]

{"sheet":"ABS-2","index":2,"n_rows":98,"n_cols":15,"rows_kept":98,"cut":false,"hidden":false,"merged":[[1,1,3,2],[4,2,7,3],[4,4,4,11],[4,12,4,14],[5,4,5,11],[5,12,5,14],[6,4,7,11],[6,12,6,14],[7,12,7,14],[15,2,15,14],[8,2,8,14],[9,2,10,14],[11,2,11,3],[11,4,11,7],[11,8,11,9],[11,10,11,14],[12,2,12,3],[12,4,12,14],[13,2,13,3],[13,4,13,14],[14,2,14,14],[16,15,17,15],[17,2,18,3],[17,4,17,5],[17,6,17,10],[17,11,18,12],[17,13,18,14],[18,4,18,5],[18,6,18,10],[16,2,16,3],[16,4,16,6],[16,7,16,8],[16,9,16,10],[16,11,16,12],[16,13,16,14],[19,2,21,3],[19,4,21,6],[19,7,21,8],[19,9,21,10],[19,11,19,14],[22,13,23,14],[23,2,23,3],[23,4,23,6],[25,2,25,14],[26,2,42,8],[26,9,26,14],[42,9,42,14],[22,2,22,3],[22,4,22,6],[22,7,23,8],[22,9,23,10],[22,11,23,12],[53,2,53,5],[53,6,53,9],[53,10,53,14],[26,15,27,15],[27,9,32,14],[33,9,33,14],[34,9,39,14],[40,9,40,14],[41,9,41,14],[44,2,44,14],[51,2,51,14],[52,2,52,5],[52,6,52,9],[52,10,52,14],[54,2,54,5],[54,6,54,9],[54,10,54,14],[55,2,55,5],[55,6,55,9],[55,10,55,14],[56,2,56,5],[56,6,56,9],[56,10,56,14],[57,2,57,5],[57,6,57,9],[57,10,57,14],[58,2,58,5],[58,6,58,9],[58,10,58,14],[59,2,59,5],[59,6,59,9],[59,10,59,14]]}
[]
[null,"      REGRESAR"]
[]
[]
[null,null,null,null,"MACROPROCESO ESTRATÉGICO",null,null,null,null,null,null,null,"CÓDIGO: ESGr027"]
[null,null,null,null,"PROCESO GESTIÓN SISTEMAS INTEGRADOS",null,null,null,null,null,null,null,"VERSIÓN: 8"]
[null,null,null,null,"MATRIZ DE MEDICIÓN Y SEGUIMIENTO A LOS PROCESOS DE GESTIÓN",null,null,null,null,null,null,null,"VIGENCIA: 2023-07-28"]
[null,null,null,null,null,null,null,null,null,null,null,null,"PÁGINA: 3 de 8"]
[]
[null,null,"FICHA DE INDICADOR"]
[]
[null,null,"MACROPROCESO",null,"Apoyo",null,null,null,"NOMBRE DEL INDICADOR",null,"Oportunidad en la entrega de suministros de papelería"]
[null,null,"PROCESO GESTIÓN",null,"Bienes y Servicios"]
[null,null,"RESPONSABLE DE MEDICIÓN",null,"Jefe de la Oficina de Almacén"]
[]
[null,null,"1. COMPORTAMIENTO DE INDICADOR"]
[null,null,"CLASIFICACIÓN DE LA MEDICIÓN",null,1,null,null,"TIPO DE INDICADOR",null,"Eficiencia",null,"META",null,1]
[null,null,"FORMULA",null,"NUMERADOR",null,"(# Pedidos entregados ≤ 15 días hábiles (desde el cierre de plataforma SIS) * 100)",null,null,null,null,"UNIDAD DE MEDIDA",null,"Porcentaje"]
[null,null,null,null,"DENOMINADOR",null,"# Total de Pedidos"]
[null,null,"TENDENCIA",null,"Positiva",null,null,"NIVEL DE SEGREGACIÓN *",null,"Por Unidad Regional",null,"ESCALA"]
[null,null,null,null,null,null,null,null,null,null,null,"Deficiente","Aceptable","Bueno","Excelente"]
[null,null,null,null,null,null,null,null,null,null,null,"0% - 71,9%","72% - 88,9%","89% - 100%",">100%"]
[null,null,"ORIGEN DE DATOS NUMERADOR",null,"Egreso elementos de consumo",null,null,"FRECUENCIA DE LA MEDICIÓN",null,"TRIMESTRAL",null,"FRECUENCIA DE RESULTADO",null,"TRIMESTRAL"]
[null,null,"ORIGEN DE DATOS DENOMINADOR",null,"Historial de pedidos Herramienta GESTASOFT"]
[]
[null,null,"RESULTADOS"]
[null,null,null,null,null,null,null,null,null,"ANÁLISIS DE DATOS"]
[null,null,null,null,null,null,null,null,null,"PRIMER TRIMESTRE: Se recibieron un total de 42 solicitudes de papelería las cuales se remitieron de forma oportuna un total de 39 solicitudes para suplir la necesidad de papelería e insumos misceláneos a las diferentes oficinas de la sede Fusagasugá, además, de las extensiones solo se recibió una solicitud correspondiente a Facatativá; se presento novedad frente a la entrega de 3 procesos Contabilidad, Control Interno y Secretaria General, dado que el archivo ABSr014 de entrega no descargo.\n\n2 TRIMESTRE: Durante el 2 trimestre se recibieron un total de 35 solicitudes de papelería, las cuales fueron atendidas en su momento a las diferentes oficinas de la Universidad de Cundinamarca dentro de las cuales se incluyen las extensiones Facatativá y Soacha; dentro del reporte se clasificaron las seccionales Girardot y Ubaté.\n\nTERCER TRIMESTRE: Durante el trimestre se recibieron un total 50 solicitudes de papelería, las cuales 36 se atendieron un su totalidad en la Sede Fusagasugá, es de aclarar que la dirección del programa de ingeniería de sistemas no recibió el elemento porque la misma facultad le suministro el único elemento solicitado; además se atendieron las solicitudes de las Extensiones de Facatativá; finalmente dentro del reporte se clasifican las seccionales de Girardot con 5 solicitudes y 8 Ubaté.\n\nCUARTO TRIMESTRE: Se recibieron un total de de 50 solicitudes así; 22 Sede Fusagasugá, 18 Seccional Girardot y 10 Seccional Ubaté, se entregaron conforme solicitudes."]
[]
[]
[]
[]
[]
[null,null,null,null,null,null,null,null,null,"ACCIÓN FORMULADA"]
[null,null,null,null,null,null,null,null,null,"PRIMER TRIMESTRE: Se elevara requerimiento a la Dirección de Sistemas y Tecnología con la finalidad de subsanar el error en plataforma, además, se verificará conciliación con el objetivo de verificar la entrega oportuna y total de las solicitudes.\nSEGUNDO TRIMESTRE: Informar a las áreas la importancia de realizar los pedidos dentro de las fechas estipuladas en el trimestre, con la finalidad de agilizar y evitar así la reapertura del módulo.\nTERCER TRIMESTRE: Depuración y actualización del inventario para alinear existencias contra sistema y no generar conflicto a la hora de realizar pedidos por falta de existencias en sistema.\n\nCUARTO TRIMESTRE: Control del inventario físico levantado a dic 31 para saldo inicial 2024"]
[]
[]
[]
[]
[]
[null,null,null,null,null,null,null,null,null,"RESPONSABLE "]
[null,null,null,null,null,null,null,null,null,{"$f":"E14","v":"Jefe de la Oficina de Almacén"}]
[]
[]
[null,null,"PERIODO DE EVALUACIÓN"]
[null,null,"MES",{"$f":"IF(J23=\"MENSUAL\",\"ENERO\",IF(J23=\"TRIMESTRAL\",\"MARZO\",IF(J23=\"SEMESTRAL\",\"JUNIO\",IF(J23=\"ANUAL\",YEAR(TODAY()),\"\"))))","v":"MARZO"},{"$f":"IF(J23=\"MENSUAL\",\"FEBRERO\",IF(J23=\"TRIMESTRAL\",\"JUNIO\",IF(J23=\"SEMESTRAL\",\"DICIEMBRE\",\"\")))","v":"JUNIO"},{"$f":"IF(J23=\"MENSUAL\",\"MARZO\",IF(J23=\"TRIMESTRAL\",\"SEPTIEMBRE\",\"\"))","v":"SEPTIEMBRE"},{"$f":"IF(J23=\"MENSUAL\",\"ABRIL\",IF(J23=\"TRIMESTRAL\",\"DICIEMBRE\",\"\"))","v":"DICIEMBRE"},{"$f":"IF(J23=\"MENSUAL\",\"MAYO\",\"\")","v":""},{"$f":"IF(J23=\"MENSUAL\",\"JUNIO\",\"\")","v":""},{"$f":"IF(J23=\"MENSUAL\",\"JULIO\",\"\")","v":""},{"$f":"IF(J23=\"MENSUAL\",\"AGOSTO\",\"\")","v":""},{"$f":"IF(J23=\"MENSUAL\",\"SEPTIEMBRE\",\"\")","v":""},{"$f":"IF(J23=\"MENSUAL\",\"OCTUBRE\",\"\")","v":""},{"$f":"IF(J23=\"MENSUAL\",\"NOVIEMBRE\",\"\")","v":""},{"$f":"IF(J23=\"MENSUAL\",\"DICIEMBRE\",\"\")","v":""}]
[null,null,{"$f":"G18","v":"(# Pedidos entregados ≤ 15 días hábiles (desde el cierre de plataforma SIS) * 100)"},39,35,49,50]
[null,null,{"$f":"G19","v":"# Total de Pedidos"},42,35,50,50]
[null,null,"VALOR ",{"$f":"IFERROR(IF($E$17=1,D47/D48,IF($E$17=2,D47,\"\")),\"\")","v":0.9285714285714286},{"$f":"IFERROR(IF($E$17=1,E47/E48,IF($E$17=2,E47,\"\")),\"\")","v":1},{"$f":"IFERROR(IF($E$17=1,F47/F48,IF($E$17=2,F47,\"\")),\"\")","v":0.98},1,"","","","","","","",""]
[null,null,"META PONDERADA",{"$f":"IF(AND(N23=\"ANUAL\",J23=\"MENSUAL\"),N17/12,IF(AND(N23=\"ANUAL\",J23=\"TRIMESTRAL\"),N17/4,IF(AND(N23=\"ANUAL\",J23=\"SEMESTRAL\"),N17/2,IF(AND(N23=\"ANUAL\",J23=\"ANUAL\"),N17,IF(AND(N23=\"SEMESTRAL\",J23=\"MENSUAL\"),N17/6,IF(AND(N23=\"SEMESTRAL\",J23=\"TRIMESTRAL\"),N17/2,IF(AND(N23=\"SEMESTRAL\",J23=\"SEMESTRAL\"),N17,IF(AND(N23=\"SEMESTRAL\",J23=\"ANUAL\"),\"REVISAR FRECUENCIAS\",IF(AND(N23=\"TRIMESTRAL\",J23=\"MENSUAL\"),N17/3,IF(AND(N23=\"TRIMESTRAL\",J23=\"TRIMESTRAL\"),N17,IF(AND(N23=\"TRIMESTRAL\",J23=\"SEMESTRAL\"),\"REVISAR FRECUENCIAS\",IF(AND(N23=\"TRIMESTRAL\",J23=\"ANUAL\"),\"REVISAR FRECUENCIAS\",IF(AND(N23=\"MENSUAL\",J23=\"MENSUAL\"),N17,IF(AND(N23=\"MENSUAL\",J23=\"TRIMESTRAL\"),\"REVISAR FRECUENCIAS\",IF(AND(N23=\"MENSUAL\",J23=\"SEMESTRAL\"),\"REVISAR FRECUENCIAS\",IF(AND(N23=\"MENSUAL\",J23=\"ANUAL\"),\"REVISAR FRECUENCIAS\",\"\"))))))))))))))))","v":1},{"$f":"IF(AND(N23=\"ANUAL\",J23=\"MENSUAL\"),N17/12+D50,IF(AND(N23=\"ANUAL\",J23=\"TRIMESTRAL\"),N17/4+D50,IF(AND(N23=\"ANUAL\",J23=\"SEMESTRAL\"),N17/2+D50,IF(AND(N23=\"SEMESTRAL\",J23=\"MENSUAL\"),N17/6+D50,IF(AND(N23=\"SEMESTRAL\",J23=\"TRIMESTRAL\"),N17/2+D50,IF(AND(N23=\"SEMESTRAL\",J23=\"SEMESTRAL\"),N17,IF(AND(N23=\"TRIMESTRAL\",J23=\"MENSUAL\"),N17/3+D50,IF(AND(N23=\"TRIMESTRAL\",J23=\"TRIMESTRAL\"),N17,IF(AND(N23=\"MENSUAL\",J23=\"MENSUAL\"),N17,\"\")))))))))","v":1},{"$f":"IF(AND(N23=\"ANUAL\",J23=\"MENSUAL\"),N17/12+E50,IF(AND(N23=\"ANUAL\",J23=\"TRIMESTRAL\"),N17/4+E50,IF(AND(N23=\"SEMESTRAL\",J23=\"MENSUAL\"),N17/6+E50,IF(AND(N23=\"SEMESTRAL\",J23=\"TRIMESTRAL\"),N17/2,IF(AND(N23=\"TRIMESTRAL\",J23=\"MENSUAL\"),N17/3+E50,IF(AND(N23=\"TRIMESTRAL\",J23=\"TRIMESTRAL\"),N17,IF(AND(N23=\"MENSUAL\",J23=\"MENSUAL\"),N17,\"\")))))))","v":1},{"$f":"IF(AND(N23=\"ANUAL\",J23=\"MENSUAL\"),N17/12+F50,IF(AND(N23=\"ANUAL\",J23=\"TRIMESTRAL\"),N17/4+F50,IF(AND(N23=\"SEMESTRAL\",J23=\"MENSUAL\"),N17/6+F50,IF(AND(N23=\"SEMESTRAL\",J23=\"TRIMESTRAL\"),N17/2+F50,IF(AND(N23=\"TRIMESTRAL\",J23=\"MENSUAL\"),N17/3,IF(AND(N23=\"TRIMESTRAL\",J23=\"TRIMESTRAL\"),N17,IF(AND(N23=\"MENSUAL\",J23=\"MENSUAL\"),N17,\"\")))))))","v":1},{"$f":"IF(AND($N$23=\"ANUAL\",$J$23=\"MENSUAL\"),$N$17/12+G50,IF(AND(N23=\"SEMESTRAL\",J23=\"MENSUAL\"),N17/6+G50,IF(AND(N23=\"TRIMESTRAL\",J23=\"MENSUAL\"),N17/3+G50,IF(AND(N23=\"MENSUAL\",J23=\"MENSUAL\"),N17,\"\"))))","v":""},{"$f":"IF(AND($N$23=\"ANUAL\",$J$23=\"MENSUAL\"),$N$17/12+H50,IF(AND(N23=\"SEMESTRAL\",J23=\"MENSUAL\"),N17/6+H50,IF(AND(N23=\"TRIMESTRAL\",J23=\"MENSUAL\"),N17/3+H50,IF(AND(N23=\"MENSUAL\",J23=\"MENSUAL\"),N17,\"\"))))","v":""},{"$f":"IF(AND($N$23=\"ANUAL\",$J$23=\"MENSUAL\"),$N$17/12+I50,IF(AND(N23=\"SEMESTRAL\",J23=\"MENSUAL\"),N17/6,IF(AND(N23=\"TRIMESTRAL\",J23=\"MENSUAL\"),N17/3,IF(AND(N23=\"MENSUAL\",J23=\"MENSUAL\"),N17,\"\"))))","v":""},{"$f":"IF(AND($N$23=\"ANUAL\",$J$23=\"MENSUAL\"),$N$17/12+J50,IF(AND(N23=\"SEMESTRAL\",J23=\"MENSUAL\"),N17/6+J50,IF(AND(N23=\"TRIMESTRAL\",J23=\"MENSUAL\"),N17/3+J50,IF(AND(N23=\"MENSUAL\",J23=\"MENSUAL\"),N17,\"\"))))","v":""},{"$f":"IF(AND($N$23=\"ANUAL\",$J$23=\"MENSUAL\"),$N$17/12+K50,IF(AND(N23=\"SEMESTRAL\",J23=\"MENSUAL\"),N17/6+K50,IF(AND(N23=\"TRIMESTRAL\",J23=\"MENSUAL\"),N17/3+K50,IF(AND(N23=\"MENSUAL\",J23=\"MENSUAL\"),N17,\"\"))))","v":""},{"$f":"IF(AND($N$23=\"ANUAL\",$J$23=\"MENSUAL\"),$N$17/12+L50,IF(AND(N23=\"SEMESTRAL\",J23=\"MENSUAL\"),N17/6+L50,IF(AND(N23=\"TRIMESTRAL\",J23=\"MENSUAL\"),N17/3,IF(AND(N23=\"MENSUAL\",J23=\"MENSUAL\"),N17,\"\"))))","v":""},{"$f":"IF(AND($N$23=\"ANUAL\",$J$23=\"MENSUAL\"),$N$17/12+M50,IF(AND(N23=\"SEMESTRAL\",J23=\"MENSUAL\"),N17/6+M50,IF(AND(N23=\"TRIMESTRAL\",J23=\"MENSUAL\"),N17/3+M50,IF(AND(N23=\"MENSUAL\",J23=\"MENSUAL\"),N17,\"\"))))","v":""},{"$f":"IF(AND($N$23=\"ANUAL\",$J$23=\"MENSUAL\"),$N$17/12+N50,IF(AND(N23=\"SEMESTRAL\",J23=\"MENSUAL\"),N17/6+N50,IF(AND(N23=\"TRIMESTRAL\",J23=\"MENSUAL\"),N17/3+N50,IF(AND(N23=\"MENSUAL\",J23=\"MENSUAL\"),N17,\"\"))))","v":""}]
[]
[null,null,"NIVEL DE SEGREGACIÓN *"]
[null,null,"UNIDAD SEGREGADA (Ej. Facultad, Programa Académico, Área)",null,null,null,"RESULTADO",null,null,null,"ANALISIS DE DATOS SEGREGADO"]
[null,null,"SECCIONAL GIRARDOT",null,null,null,18,null,null,null,"La seccional realiza conforme a las 18 solicitudes la respectiva entrega en los tiempos establecidos. Anexo ABSr014"]
[null,null,"SECCIONAL UBATÉ",null,null,null,10,null,null,null,"Se realizaron de conformidad con las solicitudes un total de 11 entregas a las diferentes oficinas de las seccional. Anexos ABSr014 v_9"]
[]
[]
[]
[]
[]
[]
[]
[]
[]
[]
[]
[]
[]
[]
[]
[]
[null,null,null,null,null,null,"Estratégico",null,null,"Eficacia"]
[null,null,null,null,null,null,"Misional",null,null,"Eficiencia"]
[null,null,null,null,null,null,"Apoyo",null,null,"Acreditación"]
[null,null,null,null,null,null,"Seguimiento, Medición, Análisis y Evaluación",null,null,"Positiva"]
[null,null,null,null,null,null,"Direccionamiento Estratégico",null,null,"Negativa"]
[null,null,null,null,null,null,"Planeación Institucional",null,null,"Por Unidad Regional"]
[null,null,null,null,null,null,"Proyectos Especiales y Relaciones Interinstitucionales",null,null,"Por Facultad"]
[null,null,null,null,null,null,"Sistemas Integrados",null,null,"Por Programa Académico"]
[null,null,null,null,null,null,"Autoevaluación y Acreditación",null,null,"Por área"]
[null,null,null,null,null,null,"Comunicaciones",null,null,"Por Laboratorio"]
[null,null,null,null,null,null,"Formación y Aprendizaje",null,null,"Otros"]
[null,null,null,null,null,null,"Ciencia, Tecnología e Innovación",null,null,"No Aplica"]
[null,null,null,null,null,null,"Interacción Social Universitaria"]
[null,null,null,null,null,null,"Bienestar Universitario"]
[null,null,null,null,null,null,"Admisiones y Registro"]
[null,null,null,null,null,null,"Graduados"]
[null,null,null,null,null,null,"Dialogando con el Mundo"]
[null,null,null,null,null,null,"Talento Humano"]
[null,null,null,null,null,null,"Jurídica"]
[null,null,null,null,null,null,"Financiera"]
[null,null,null,null,null,null,"Sistemas y Tecnología"]
[null,null,null,null,null,null,"Bienes y Servicios"]
[null,null,null,null,null,null,"Documental"]
[null,null,null,null,null,null,"Apoyo Académico"]
[null,null,null,null,null,null,"Control Interno"]
[null,null,null,null,null,null,"Control Disciplinario"]
[null,null,null,null,null,null,"Servicio de Atención al Ciudadano"]

{"sheet":"Hoja1","index":3,"n_rows":3,"n_cols":8,"rows_kept":3,"cut":false,"hidden":true,"merged":[]}
[null,"FUSA","CHIA","UBATE","SOACHA","GIRARDOT","FACATATIVA"]
["(Total compras  de contratación directa atendidas en tiempo menor a 25 días) *100",39,5,13,9,8,6,{"$f":"SUM(B2:G2)","v":80}]
["Total de compras de contratación directa",59,6,13,9,9,6,{"$f":"SUM(B3:G3)","v":102}]

{"sheet":"Hoja2","index":4,"n_rows":3,"n_cols":8,"rows_kept":3,"cut":false,"hidden":true,"merged":[]}
[null,"FUSA","CHIA","UBATE","SOACHA","GIRARDOT","FACATATIVA"]
["Total proveedores calificados mayor a 70 *100 ",196,2,18,6,17,9,{"$f":"SUM(B2:G2)","v":248}]
["Total proveedores ",204,2,18,6,17,9,{"$f":"SUM(B3:G3)","v":256}]

{"sheet":"ABS-4","index":5,"n_rows":98,"n_cols":15,"rows_kept":98,"cut":false,"hidden":false,"merged":[[58,2,58,5],[58,6,58,9],[58,10,58,14],[59,2,59,5],[59,6,59,9],[59,10,59,14],[56,2,56,5],[56,6,56,9],[56,10,56,14],[57,2,57,5],[57,6,57,9],[57,10,57,14],[54,2,54,5],[54,6,54,9],[54,10,54,14],[55,2,55,5],[55,6,55,9],[55,10,55,14],[53,2,53,5],[53,6,53,9],[53,10,53,14],[26,15,27,15],[27,9,32,14],[33,9,33,14],[34,9,39,14],[40,9,40,14],[41,9,41,14],[44,2,44,14],[51,2,51,14],[52,2,52,5],[52,6,52,9],[52,10,52,14],[22,13,23,14],[23,2,23,3],[23,4,23,6],[25,2,25,14],[26,2,42,8],[26,9,26,14],[42,9,42,14],[22,2,22,3],[22,4,22,6],[22,7,23,8],[22,9,23,10],[22,11,23,12],[19,2,21,3],[19,4,21,6],[19,7,21,8],[19,9,21,10],[19,11,19,14],[16,15,17,15],[17,2,18,3],[17,4,17,5],[17,6,17,10],[17,11,18,12],[17,13,18,14],[18,4,18,5],[18,6,18,10],[16,2,16,3],[16,4,16,6],[16,7,16,8],[16,9,16,10],[16,11,16,12],[16,13,16,14],[15,2,15,14],[8,2,8,14],[9,2,10,14],[11,2,11,3],[11,4,11,7],[11,8,11,9],[11,10,11,14],[12,2,12,3],[12,4,12,14],[13,2,13,3],[13,4,13,14],[14,2,14,14],[1,1,3,2],[4,2,7,3],[4,4,4,11],[4,12,4,14],[5,4,5,11],[5,12,5,14],[6,4,7,11],[6,12,6,14],[7,12,7,14]]}
[]
[null,"      REGRESAR"]
[]
[]
[null,null,null,null,"MACROPROCESO ESTRATÉGICO",null,null,null,null,null,null,null,"CÓDIGO: ESGr027"]
[null,null,null,null,"PROCESO GESTIÓN SISTEMAS INTEGRADOS",null,null,null,null,null,null,null,"VERSIÓN: 8"]
[null,null,null,null,"MATRIZ DE MEDICIÓN Y SEGUIMIENTO A LOS PROCESOS DE GESTIÓN",null,null,null,null,null,null,null,"VIGENCIA: 2023-07-28"]
[null,null,null,null,null,null,null,null,null,null,null,null,"PÁGINA: 4 de 8"]
[]
[null,null,"FICHA DE INDICADOR"]
[]
[null,null,"MACROPROCESO",null,"Apoyo",null,null,null,"NOMBRE DEL INDICADOR",null,"Oportunidad de la compra"]
[null,null,"PROCESO GESTIÓN",null,"Bienes y Servicios"]
[null,null,"RESPONSABLE DE MEDICIÓN",null,"Jefe de la Oficina de Compras"]
[]
[null,null,"1. COMPORTAMIENTO DE INDICADOR"]
[null,null,"CLASIFICACIÓN DE LA MEDICIÓN",null,1,null,null,"TIPO DE INDICADOR",null,"Eficiencia",null,"META",null,0.8]
[null,null,"FORMULA",null,"NUMERADOR",null,"(Total compras  de contratación directa atendidas en tiempo menor a 30 días) *100",null,null,null,null,"UNIDAD DE MEDIDA",null,"Porcentual"]
[null,null,null,null,"DENOMINADOR",null,"Total de compras de contratación directa"]
[null,null,"TENDENCIA",null,"Positiva",null,null,"NIVEL DE SEGREGACIÓN *",null,"No Aplica",null,"ESCALA"]
[null,null,null,null,null,null,null,null,null,null,null,"Deficiente","Aceptable","Bueno","Excelente"]
[null,null,null,null,null,null,null,null,null,null,null,"0% - 59%","60% - 69,9%","70% - 80%","80,1% - 100%"]
[null,null,"ORIGEN DE DATOS NUMERADOR",null,"Herramienta INTEGRADOC",null,null,"FRECUENCIA DE LA MEDICIÓN",null,"TRIMESTRAL",null,"FRECUENCIA DE RESULTADO",null,"TRIMESTRAL"]
[null,null,"ORIGEN DE DATOS DENOMINADOR",null,"Procesos contractuales mediante la modalidad de contratación directa"]
[]
[null,null,"RESULTADOS"]
[null,null,null,null,null,null,null,null,null,"ANÁLISIS DE DATOS"]
[null,null,null,null,null,null,null,null,null,"En el último trimestre, se llevaron a cabo un total de 164 contratos en la sede principal, seccionales y extensiones. De estos, 138 se completaron en un plazo inferior a 30 días, lo cual refleja un rendimiento evaluado como \"EXCELENTE\" .\nEs importante señalar que algunos contratos tomaron más de 30 días para su ejecución, y las razones detrás de estas demoras se pueden atribuir a diversos factores, entre ellos:\nDevolución de conceptos técnicos: En algunos casos, se requirió la devolución de conceptos técnicos debido a la falta de verificación o a inconsistencias identificadas en los mismos.\nIncorporación de tiempos adicionales: La inclusión de plazos adicionales a las actividades fue necesaria en situaciones donde se presentaron aspectos subsanables o ajustes en los alcances de la contratación directa.\nDemoras administrativas: Factores relacionados con la gestión administrativa, como el volumen considerable de contratación, generaron demoras en el proceso de ejecución de algunos contratos.\nEsta evaluación detallada de los tiempos de ejecución nos proporciona una comprensión más completa de los desafíos encontrados en el cuarto trimestre, permitiéndonos identificar áreas específicas para mejorar eficiencias y garantizar la agilidad en futuras contrataciones. Sin embargo, es de destacar el compromiso de las oficinas por mejorar los indicadores.  "]
[]
[]
[]
[]
[]
[null,null,null,null,null,null,null,null,null,"ACCIÓN FORMULADA"]
[null,null,null,null,null,null,null,null,null,"Realización de mesas de trabajo y capacitaciones virtuales y jornadas de sensibilización a las áreas solicitantes, con el fin de fortalecer conocimientos."]
[]
[]
[]
[]
[]
[null,null,null,null,null,null,null,null,null,"RESPONSABLE "]
[null,null,null,null,null,null,null,null,null,{"$f":"E14","v":"Jefe de la Oficina de Compras"}]
[]
[]
[null,null,"PERIODO DE EVALUACIÓN"]
[null,null,"MES",{"$f":"IF(J23=\"MENSUAL\",\"ENERO\",IF(J23=\"TRIMESTRAL\",\"MARZO\",IF(J23=\"SEMESTRAL\",\"JUNIO\",IF(J23=\"ANUAL\",YEAR(TODAY()),\"\"))))","v":"MARZO"},{"$f":"IF(J23=\"MENSUAL\",\"FEBRERO\",IF(J23=\"TRIMESTRAL\",\"JUNIO\",IF(J23=\"SEMESTRAL\",\"DICIEMBRE\",\"\")))","v":"JUNIO"},{"$f":"IF(J23=\"MENSUAL\",\"MARZO\",IF(J23=\"TRIMESTRAL\",\"SEPTIEMBRE\",\"\"))","v":"SEPTIEMBRE"},{"$f":"IF(J23=\"MENSUAL\",\"ABRIL\",IF(J23=\"TRIMESTRAL\",\"DICIEMBRE\",\"\"))","v":"DICIEMBRE"},{"$f":"IF(J23=\"MENSUAL\",\"MAYO\",\"\")","v":""},{"$f":"IF(J23=\"MENSUAL\",\"JUNIO\",\"\")","v":""},{"$f":"IF(J23=\"MENSUAL\",\"JULIO\",\"\")","v":""},{"$f":"IF(J23=\"MENSUAL\",\"AGOSTO\",\"\")","v":""},{"$f":"IF(J23=\"MENSUAL\",\"SEPTIEMBRE\",\"\")","v":""},{"$f":"IF(J23=\"MENSUAL\",\"OCTUBRE\",\"\")","v":""},{"$f":"IF(J23=\"MENSUAL\",\"NOVIEMBRE\",\"\")","v":""},{"$f":"IF(J23=\"MENSUAL\",\"DICIEMBRE\",\"\")","v":""}]
[null,null,{"$f":"G18","v":"(Total compras  de contratación directa atendidas en tiempo menor a 30 días) *100"},29,80,117,138]
[null,null,{"$f":"G19","v":"Total de compras de contratación directa"},41,102,126,164]
[null,null,"VALOR ",{"$f":"IFERROR(IF($E$17=1,D47/D48,IF($E$17=2,D47,\"\")),\"\")","v":0.70731707317073167},{"$f":"IFERROR(IF($E$17=1,E47/E48,IF($E$17=2,E47,\"\")),\"\")","v":0.78431372549019607},{"$f":"IFERROR(IF($E$17=1,F47/F48,IF($E$17=2,F47,\"\")),\"\")","v":0.9285714285714286},0.84146341463414631,"","","","","","","",""]
[null,null,"META PONDERADA",{"$f":"IF(AND(N23=\"ANUAL\",J23=\"MENSUAL\"),N17/12,IF(AND(N23=\"ANUAL\",J23=\"TRIMESTRAL\"),N17/4,IF(AND(N23=\"ANUAL\",J23=\"SEMESTRAL\"),N17/2,IF(AND(N23=\"ANUAL\",J23=\"ANUAL\"),N17,IF(AND(N23=\"SEMESTRAL\",J23=\"MENSUAL\"),N17/6,IF(AND(N23=\"SEMESTRAL\",J23=\"TRIMESTRAL\"),N17/2,IF(AND(N23=\"SEMESTRAL\",J23=\"SEMESTRAL\"),N17,IF(AND(N23=\"SEMESTRAL\",J23=\"ANUAL\"),\"REVISAR FRECUENCIAS\",IF(AND(N23=\"TRIMESTRAL\",J23=\"MENSUAL\"),N17/3,IF(AND(N23=\"TRIMESTRAL\",J23=\"TRIMESTRAL\"),N17,IF(AND(N23=\"TRIMESTRAL\",J23=\"SEMESTRAL\"),\"REVISAR FRECUENCIAS\",IF(AND(N23=\"TRIMESTRAL\",J23=\"ANUAL\"),\"REVISAR FRECUENCIAS\",IF(AND(N23=\"MENSUAL\",J23=\"MENSUAL\"),N17,IF(AND(N23=\"MENSUAL\",J23=\"TRIMESTRAL\"),\"REVISAR FRECUENCIAS\",IF(AND(N23=\"MENSUAL\",J23=\"SEMESTRAL\"),\"REVISAR FRECUENCIAS\",IF(AND(N23=\"MENSUAL\",J23=\"ANUAL\"),\"REVISAR FRECUENCIAS\",\"\"))))))))))))))))","v":0.8},{"$f":"IF(AND(N23=\"ANUAL\",J23=\"MENSUAL\"),N17/12+D50,IF(AND(N23=\"ANUAL\",J23=\"TRIMESTRAL\"),N17/4+D50,IF(AND(N23=\"ANUAL\",J23=\"SEMESTRAL\"),N17/2+D50,IF(AND(N23=\"SEMESTRAL\",J23=\"MENSUAL\"),N17/6+D50,IF(AND(N23=\"SEMESTRAL\",J23=\"TRIMESTRAL\"),N17/2+D50,IF(AND(N23=\"SEMESTRAL\",J23=\"SEMESTRAL\"),N17,IF(AND(N23=\"TRIMESTRAL\",J23=\"MENSUAL\"),N17/3+D50,IF(AND(N23=\"TRIMESTRAL\",J23=\"TRIMESTRAL\"),N17,IF(AND(N23=\"MENSUAL\",J23=\"MENSUAL\"),N17,\"\")))))))))","v":0.8},{"$f":"IF(AND(N23=\"ANUAL\",J23=\"MENSUAL\"),N17/12+E50,IF(AND(N23=\"ANUAL\",J23=\"TRIMESTRAL\"),N17/4+E50,IF(AND(N23=\"SEMESTRAL\",J23=\"MENSUAL\"),N17/6+E50,IF(AND(N23=\"SEMESTRAL\",J23=\"TRIMESTRAL\"),N17/2,IF(AND(N23=\"TRIMESTRAL\",J23=\"MENSUAL\"),N17/3+E50,IF(AND(N23=\"TRIMESTRAL\",J23=\"TRIMESTRAL\"),N17,IF(AND(N23=\"MENSUAL\",J23=\"MENSUAL\"),N17,\"\")))))))","v":0.8},{"$f":"IF(AND(N23=\"ANUAL\",J23=\"MENSUAL\"),N17/12+F50,IF(AND(N23=\"ANUAL\",J23=\"TRIMESTRAL\"),N17/4+F50,IF(AND(N23=\"SEMESTRAL\",J23=\"MENSUAL\"),N17/6+F50,IF(AND(N23=\"SEMESTRAL\",J23=\"TRIMESTRAL\"),N17/2+F50,IF(AND(N23=\"TRIMESTRAL\",J23=\"MENSUAL\"),N17/3,IF(AND(N23=\"TRIMESTRAL\",J23=\"TRIMESTRAL\"),N17,IF(AND(N23=\"MENSUAL\",J23=\"MENSUAL\"),N17,\"\")))))))","v":0.8},{"$f":"IF(AND($N$23=\"ANUAL\",$J$23=\"MENSUAL\"),$N$17/12+G50,IF(AND(N23=\"SEMESTRAL\",J23=\"MENSUAL\"),N17/6+G50,IF(AND(N23=\"TRIMESTRAL\",J23=\"MENSUAL\"),N17/3+G50,IF(AND(N23=\"MENSUAL\",J23=\"MENSUAL\"),N17,\"\"))))","v":""},{"$f":"IF(AND($N$23=\"ANUAL\",$J$23=\"MENSUAL\"),$N$17/12+H50,IF(AND(N23=\"SEMESTRAL\",J23=\"MENSUAL\"),N17/6+H50,IF(AND(N23=\"TRIMESTRAL\",J23=\"MENSUAL\"),N17/3+H50,IF(AND(N23=\"MENSUAL\",J23=\"MENSUAL\"),N17,\"\"))))","v":""},{"$f":"IF(AND($N$23=\"ANUAL\",$J$23=\"MENSUAL\"),$N$17/12+I50,IF(AND(N23=\"SEMESTRAL\",J23=\"MENSUAL\"),N17/6,IF(AND(N23=\"TRIMESTRAL\",J23=\"MENSUAL\"),N17/3,IF(AND(N23=\"MENSUAL\",J23=\"MENSUAL\"),N17,\"\"))))","v":""},{"$f":"IF(AND($N$23=\"ANUAL\",$J$23=\"MENSUAL\"),$N$17/12+J50,IF(AND(N23=\"SEMESTRAL\",J23=\"MENSUAL\"),N17/6+J50,IF(AND(N23=\"TRIMESTRAL\",J23=\"MENSUAL\"),N17/3+J50,IF(AND(N23=\"MENSUAL\",J23=\"MENSUAL\"),N17,\"\"))))","v":""},{"$f":"IF(AND($N$23=\"ANUAL\",$J$23=\"MENSUAL\"),$N$17/12+K50,IF(AND(N23=\"SEMESTRAL\",J23=\"MENSUAL\"),N17/6+K50,IF(AND(N23=\"TRIMESTRAL\",J23=\"MENSUAL\"),N17/3+K50,IF(AND(N23=\"MENSUAL\",J23=\"MENSUAL\"),N17,\"\"))))","v":""},{"$f":"IF(AND($N$23=\"ANUAL\",$J$23=\"MENSUAL\"),$N$17/12+L50,IF(AND(N23=\"SEMESTRAL\",J23=\"MENSUAL\"),N17/6+L50,IF(AND(N23=\"TRIMESTRAL\",J23=\"MENSUAL\"),N17/3,IF(AND(N23=\"MENSUAL\",J23=\"MENSUAL\"),N17,\"\"))))","v":""},{"$f":"IF(AND($N$23=\"ANUAL\",$J$23=\"MENSUAL\"),$N$17/12+M50,IF(AND(N23=\"SEMESTRAL\",J23=\"MENSUAL\"),N17/6+M50,IF(AND(N23=\"TRIMESTRAL\",J23=\"MENSUAL\"),N17/3+M50,IF(AND(N23=\"MENSUAL\",J23=\"MENSUAL\"),N17,\"\"))))","v":""},{"$f":"IF(AND($N$23=\"ANUAL\",$J$23=\"MENSUAL\"),$N$17/12+N50,IF(AND(N23=\"SEMESTRAL\",J23=\"MENSUAL\"),N17/6+N50,IF(AND(N23=\"TRIMESTRAL\",J23=\"MENSUAL\"),N17/3+N50,IF(AND(N23=\"MENSUAL\",J23=\"MENSUAL\"),N17,\"\"))))","v":""}]
[]
[null,null,"NIVEL DE SEGREGACIÓN *"]
[null,null,"UNIDAD SEGREGADA (Ej. Facultad, Programa Académico, Área)",null,null,null,"RESULTADO",null,null,null,"ANALISIS DE DATOS SEGREGADO"]
[null,null,"SOACHA",null,null,null,100,null,null,null,"En la Extensión Soacha se presentaron un total de 10 compras por contratación directa en el cuarto trimestre 2023 de las cuales las 10  fueron atendidas en un tiempo menor a 30 días con un promedio de atención de 16 días posicionándose en una escala de Excelente.\t\t\t\t\t\n\t\t\t\t\t\n\t\t\t\t\t\n\t\t\t\t\t\n\t\t\t\t\t\n\t\t\t\t\t"]
[null,null,"FACATATIVA",null,null,null,100,null,null,null,"En el cuarto  trimestre del año 2023 se efectuaron en total 9 contratos, en los cuales 9 se realizaron en tiempo inferior a 30 días debido a la pronta respuesta y el trabajo en equipo por parte del área solicitante y el área de compras.  "]
[null,null,"UBATE",null,null,null,100,null,null,null,"De acuerdo al análisis realizado se evidencia un cumplimiento del 100% en la oportunidad de la compra, toda vez que, los 14 procesos finalizados con selección de proponente en el transcurso del cuarto trimestre se adelantaron en un tiempo menor a 30 días, lo cual, refleja un alto grado de eficiencia y compromiso por parte de las diferentes áreas que intervienen en el proceso pre contractual y contractual. Dando de esta manera, cumplimiento a la Circular directrices para los procesos y tiempos de contratación emitida por la Vicerrectoría Administrativa y Financiera."]
[null,null,"GIRARDOT",null,null,null,92,null,null,null,"De los 12 contratos efectuados en el trimestre los 11 estuvieron en tiempo de realización, menor a 30 días, encontrándose en una escala excelente; es importante el acompañamiento que se le dio a los procesos en la elaboración de los ABS por parte de las áreas que avalan el proceso como son Sistema de Gestión Ambiental, Seguridad y Salud en el Trabajo, Jurídica, Bienes y Servicios y los estudios de Mercado.       "]
[null,null,"CHIA-ZIPAQUIRA",null,null,null,83,null,null,null,"de 6 ordenes contractuales de contratación directa 5 se desarrollaron antes de 30 días, 1 supero este tiempo."]
[]
[]
[]
[]
[]
[]
[]
[]
[]
[]
[]
[]
[]
[null,null,null,null,null,null,"Estratégico",null,null,"Eficacia"]
[null,null,null,null,null,null,"Misional",null,null,"Eficiencia"]
[null,null,null,null,null,null,"Apoyo",null,null,"Acreditación"]
[null,null,null,null,null,null,"Seguimiento, Medición, Análisis y Evaluación",null,null,"Positiva"]
[null,null,null,null,null,null,"Direccionamiento Estratégico",null,null,"Negativa"]
[null,null,null,null,null,null,"Planeación Institucional",null,null,"Por Unidad Regional"]
[null,null,null,null,null,null,"Proyectos Especiales y Relaciones Interinstitucionales",null,null,"Por Facultad"]
[null,null,null,null,null,null,"Sistemas Integrados",null,null,"Por Programa Académico"]
[null,null,null,null,null,null,"Autoevaluación y Acreditación",null,null,"Por área"]
[null,null,null,null,null,null,"Comunicaciones",null,null,"Por Laboratorio"]
[null,null,null,null,null,null,"Formación y Aprendizaje",null,null,"Otros"]
[null,null,null,null,null,null,"Ciencia, Tecnología e Innovación",null,null,"No Aplica"]
[null,null,null,null,null,null,"Interacción Social Universitaria"]
[null,null,null,null,null,null,"Bienestar Universitario"]
[null,null,null,null,null,null,"Admisiones y Registro"]
[null,null,null,null,null,null,"Graduados"]
[null,null,null,null,null,null,"Dialogando con el Mundo"]
[null,null,null,null,null,null,"Talento Humano"]
[null,null,null,null,null,null,"Jurídica"]
[null,null,null,null,null,null,"Financiera"]
[null,null,null,null,null,null,"Sistemas y Tecnología"]
[null,null,null,null,null,null,"Bienes y Servicios"]
[null,null,null,null,null,null,"Documental"]
[null,null,null,null,null,null,"Apoyo Académico"]
[null,null,null,null,null,null,"Control Interno"]
[null,null,null,null,null,null,"Control Disciplinario"]
[null,null,null,null,null,null,"Servicio de Atención al Ciudadano"]

{"sheet":"HOJA-4","index":6,"n_rows":3,"n_cols":8,"rows_kept":3,"cut":false,"hidden":false,"merged":[]}
["REFERENCIA","FUSA","CHIA","UBATE","SOACHA","GIRARDOT","FACATATIVA"]
["(Total compras  de contratación directa atendidas en tiempo menor a 30 días) *100",89,5,14,10,11,9,{"$f":"SUM(B2:G2)","v":138}]
["Total de compras de contratación directa",113,6,14,10,12,9,{"$f":"SUM(B3:G3)","v":164}]

{"sheet":"ABS-9","index":7,"n_rows":98,"n_cols":15,"rows_kept":98,"cut":false,"hidden":false,"merged":[[58,2,58,5],[58,6,58,9],[58,10,58,14],[59,2,59,5],[59,6,59,9],[59,10,59,14],[56,2,56,5],[56,6,56,9],[56,10,56,14],[57,2,57,5],[57,6,57,9],[57,10,57,14],[54,2,54,5],[54,6,54,9],[54,10,54,14],[55,2,55,5],[55,6,55,9],[55,10,55,14],[53,2,53,5],[53,6,53,9],[53,10,53,14],[26,15,27,15],[27,9,32,14],[33,9,33,14],[34,9,39,14],[40,9,40,14],[41,9,41,14],[44,2,44,14],[51,2,51,14],[52,2,52,5],[52,6,52,9],[52,10,52,14],[22,13,23,14],[23,2,23,3],[23,4,23,6],[25,2,25,14],[26,2,42,8],[26,9,26,14],[42,9,42,14],[22,2,22,3],[22,4,22,6],[22,7,23,8],[22,9,23,10],[22,11,23,12],[19,2,21,3],[19,4,21,6],[19,7,21,8],[19,9,21,10],[19,11,19,14],[16,15,17,15],[17,2,18,3],[17,4,17,5],[17,6,17,10],[17,11,18,12],[17,13,18,14],[18,4,18,5],[18,6,18,10],[16,2,16,3],[16,4,16,6],[16,7,16,8],[16,9,16,10],[16,11,16,12],[16,13,16,14],[15,2,15,14],[8,2,8,14],[9,2,10,14],[11,2,11,3],[11,4,11,7],[11,8,11,9],[11,10,11,14],[12,2,12,3],[12,4,12,14],[13,2,13,3],[13,4,13,14],[14,2,14,14],[1,1,3,2],[4,2,7,3],[4,4,4,11],[4,12,4,14],[5,4,5,11],[5,12,5,14],[6,4,7,11],[6,12,6,14],[7,12,7,14]]}
[]
[null,"      REGRESAR"]
[]
[]
[null,null,null,null,"MACROPROCESO ESTRATÉGICO",null,null,null,null,null,null,null,"CÓDIGO: ESGr027"]
[null,null,null,null,"PROCESO GESTIÓN SISTEMAS INTEGRADOS",null,null,null,null,null,null,null,"VERSIÓN: 8"]
[null,null,null,null,"MATRIZ DE MEDICIÓN Y SEGUIMIENTO A LOS PROCESOS DE GESTIÓN",null,null,null,null,null,null,null,"VIGENCIA: 2023-07-28"]
[null,null,null,null,null,null,null,null,null,null,null,null,"PÁGINA: 5 de 8"]
[]
[null,null,"FICHA DE INDICADOR"]
[]
[null,null,"MACROPROCESO",null,"Apoyo",null,null,null,"NOMBRE DEL INDICADOR",null,"Reevaluación de proveedores Ucundinamarca"]
[null,null,"PROCESO GESTIÓN",null,"Bienes y Servicios"]
[null,null,"RESPONSABLE DE MEDICIÓN",null,"Jefe de la Oficina de Compras"]
[]
[null,null,"1. COMPORTAMIENTO DE INDICADOR"]
[null,null,"CLASIFICACIÓN DE LA MEDICIÓN",null,1,null,null,"TIPO DE INDICADOR",null,"Eficacia",null,"META",null,0.95]
[null,null,"FORMULA",null,"NUMERADOR",null,"Total proveedores calificados mayor a 70 *100 ",null,null,null,null,"UNIDAD DE MEDIDA",null,"Porcentual"]
[null,null,null,null,"DENOMINADOR",null,"Total proveedores "]
[null,null,"TENDENCIA",null,"Positiva",null,null,"NIVEL DE SEGREGACIÓN *",null,"Por Unidad Regional",null,"ESCALA"]
[null,null,null,null,null,null,null,null,null,null,null,"Deficiente","Aceptable","Bueno","Excelente"]
[null,null,null,null,null,null,null,null,null,null,null,"0% - 70%","70,1% - 80%","80,1% - 90%","> 95%"]
[null,null,"ORIGEN DE DATOS NUMERADOR",null,"Formatos de reevaluación",null,null,"FRECUENCIA DE LA MEDICIÓN",null,"SEMESTRAL",null,"FRECUENCIA DE RESULTADO",null,"SEMESTRAL"]
[null,null,"ORIGEN DE DATOS DENOMINADOR",null,"Formatos de reevaluación"]
[]
[null,null,"RESULTADOS"]
[null,null,null,null,null,null,null,null,null,"ANÁLISIS DE DATOS"]
[null,null,null,null,null,null,null,null,null,"Tras llevar a cabo la medición del indicador de Reevaluación de Proveedores para el IIPA-2023 en la sede de Fusagasugá, así como en las seccionales y extensiones, se logró un destacado resultado del 99%. Este porcentaje se traduce en 167 reevaluaciones con una calificación superior a 70, basándonos en una muestra de 170 reevaluaciones recibidas durante el presente semestre.\nLas calificaciones obtenidas están respaldadas por el cumplimiento tanto de los plazos precontractuales como poscontractuales, la disponibilidad del servicio y el acatamiento de las especificaciones técnicas establecidas. Este resultado refleja el compromiso y la eficacia de nuestros proveedores en diversos aspectos cruciales para el Instituto en este periodo."]
[]
[]
[]
[]
[]
[null,null,null,null,null,null,null,null,null,"ACCIÓN FORMULADA"]
[null,null,null,null,null,null,null,null,null,"A través de este indicador, podemos apreciar la eficaz contribución de la supervisión. Sin embargo, con el objetivo de alcanzar un índice del 100%, se propone una estrategia consistente en la organización de mesas de trabajo con la participación activa de los supervisores. El propósito de estas sesiones es diseñar estrategias desde la etapa de selección que faciliten la adecuada ejecución de los contratos, incorporando un componente jurídico que respalde estas iniciativas. Además, se contempla el uso de la plataforma Integradoc para mantener a los supervisores al tanto de sus responsabilidades, lo que garantiza que estén al día con las actividades relacionadas con la supervisión. Este enfoque integral busca optimizar la gestión de los contratos y asegurar que se cumplan de manera efectiva y eficiente, buscando siempre la excelencia en todas las etapas del proceso."]
[]
[]
[]
[]
[]
[null,null,null,null,null,null,null,null,null,"RESPONSABLE "]
[null,null,null,null,null,null,null,null,null,{"$f":"E14","v":"Jefe de la Oficina de Compras"}]
[]
[]
[null,null,"PERIODO DE EVALUACIÓN"]
[null,null,"MES",{"$f":"IF(J23=\"MENSUAL\",\"ENERO\",IF(J23=\"TRIMESTRAL\",\"MARZO\",IF(J23=\"SEMESTRAL\",\"JUNIO\",IF(J23=\"ANUAL\",YEAR(TODAY()),\"\"))))","v":"JUNIO"},{"$f":"IF(J23=\"MENSUAL\",\"FEBRERO\",IF(J23=\"TRIMESTRAL\",\"JUNIO\",IF(J23=\"SEMESTRAL\",\"DICIEMBRE\",\"\")))","v":"DICIEMBRE"},{"$f":"IF(J23=\"MENSUAL\",\"MARZO\",IF(J23=\"TRIMESTRAL\",\"SEPTIEMBRE\",\"\"))","v":""},{"$f":"IF(J23=\"MENSUAL\",\"ABRIL\",IF(J23=\"TRIMESTRAL\",\"DICIEMBRE\",\"\"))","v":""},{"$f":"IF(J23=\"MENSUAL\",\"MAYO\",\"\")","v":""},{"$f":"IF(J23=\"MENSUAL\",\"JUNIO\",\"\")","v":""},{"$f":"IF(J23=\"MENSUAL\",\"JULIO\",\"\")","v":""},{"$f":"IF(J23=\"MENSUAL\",\"AGOSTO\",\"\")","v":""},{"$f":"IF(J23=\"MENSUAL\",\"SEPTIEMBRE\",\"\")","v":""},{"$f":"IF(J23=\"MENSUAL\",\"OCTUBRE\",\"\")","v":""},{"$f":"IF(J23=\"MENSUAL\",\"NOVIEMBRE\",\"\")","v":""},{"$f":"IF(J23=\"MENSUAL\",\"DICIEMBRE\",\"\")","v":""}]
[null,null,{"$f":"G18","v":"Total proveedores calificados mayor a 70 *100 "},248,167]
[null,null,{"$f":"G19","v":"Total proveedores "},256,170]
[null,null,"VALOR ",{"$f":"IFERROR(IF($E$17=1,D47/D48,IF($E$17=2,D47,\"\")),\"\")","v":0.96875},{"$f":"IFERROR(IF($E$17=1,E47/E48,IF($E$17=2,E47,\"\")),\"\")","v":0.98235294117647054},"","","","","","","","","",""]
[null,null,"META PONDERADA",{"$f":"IF(AND(N23=\"ANUAL\",J23=\"MENSUAL\"),N17/12,IF(AND(N23=\"ANUAL\",J23=\"TRIMESTRAL\"),N17/4,IF(AND(N23=\"ANUAL\",J23=\"SEMESTRAL\"),N17/2,IF(AND(N23=\"ANUAL\",J23=\"ANUAL\"),N17,IF(AND(N23=\"SEMESTRAL\",J23=\"MENSUAL\"),N17/6,IF(AND(N23=\"SEMESTRAL\",J23=\"TRIMESTRAL\"),N17/2,IF(AND(N23=\"SEMESTRAL\",J23=\"SEMESTRAL\"),N17,IF(AND(N23=\"SEMESTRAL\",J23=\"ANUAL\"),\"REVISAR FRECUENCIAS\",IF(AND(N23=\"TRIMESTRAL\",J23=\"MENSUAL\"),N17/3,IF(AND(N23=\"TRIMESTRAL\",J23=\"TRIMESTRAL\"),N17,IF(AND(N23=\"TRIMESTRAL\",J23=\"SEMESTRAL\"),\"REVISAR FRECUENCIAS\",IF(AND(N23=\"TRIMESTRAL\",J23=\"ANUAL\"),\"REVISAR FRECUENCIAS\",IF(AND(N23=\"MENSUAL\",J23=\"MENSUAL\"),N17,IF(AND(N23=\"MENSUAL\",J23=\"TRIMESTRAL\"),\"REVISAR FRECUENCIAS\",IF(AND(N23=\"MENSUAL\",J23=\"SEMESTRAL\"),\"REVISAR FRECUENCIAS\",IF(AND(N23=\"MENSUAL\",J23=\"ANUAL\"),\"REVISAR FRECUENCIAS\",\"\"))))))))))))))))","v":0.95},{"$f":"IF(AND(N23=\"ANUAL\",J23=\"MENSUAL\"),N17/12+D50,IF(AND(N23=\"ANUAL\",J23=\"TRIMESTRAL\"),N17/4+D50,IF(AND(N23=\"ANUAL\",J23=\"SEMESTRAL\"),N17/2+D50,IF(AND(N23=\"SEMESTRAL\",J23=\"MENSUAL\"),N17/6+D50,IF(AND(N23=\"SEMESTRAL\",J23=\"TRIMESTRAL\"),N17/2+D50,IF(AND(N23=\"SEMESTRAL\",J23=\"SEMESTRAL\"),N17,IF(AND(N23=\"TRIMESTRAL\",J23=\"MENSUAL\"),N17/3+D50,IF(AND(N23=\"TRIMESTRAL\",J23=\"TRIMESTRAL\"),N17,IF(AND(N23=\"MENSUAL\",J23=\"MENSUAL\"),N17,\"\")))))))))","v":0.95},{"$f":"IF(AND(N23=\"ANUAL\",J23=\"MENSUAL\"),N17/12+E50,IF(AND(N23=\"ANUAL\",J23=\"TRIMESTRAL\"),N17/4+E50,IF(AND(N23=\"SEMESTRAL\",J23=\"MENSUAL\"),N17/6+E50,IF(AND(N23=\"SEMESTRAL\",J23=\"TRIMESTRAL\"),N17/2,IF(AND(N23=\"TRIMESTRAL\",J23=\"MENSUAL\"),N17/3+E50,IF(AND(N23=\"TRIMESTRAL\",J23=\"TRIMESTRAL\"),N17,IF(AND(N23=\"MENSUAL\",J23=\"MENSUAL\"),N17,\"\")))))))","v":""},{"$f":"IF(AND(N23=\"ANUAL\",J23=\"MENSUAL\"),N17/12+F50,IF(AND(N23=\"ANUAL\",J23=\"TRIMESTRAL\"),N17/4+F50,IF(AND(N23=\"SEMESTRAL\",J23=\"MENSUAL\"),N17/6+F50,IF(AND(N23=\"SEMESTRAL\",J23=\"TRIMESTRAL\"),N17/2+F50,IF(AND(N23=\"TRIMESTRAL\",J23=\"MENSUAL\"),N17/3,IF(AND(N23=\"TRIMESTRAL\",J23=\"TRIMESTRAL\"),N17,IF(AND(N23=\"MENSUAL\",J23=\"MENSUAL\"),N17,\"\")))))))","v":""},{"$f":"IF(AND($N$23=\"ANUAL\",$J$23=\"MENSUAL\"),$N$17/12+G50,IF(AND(N23=\"SEMESTRAL\",J23=\"MENSUAL\"),N17/6+G50,IF(AND(N23=\"TRIMESTRAL\",J23=\"MENSUAL\"),N17/3+G50,IF(AND(N23=\"MENSUAL\",J23=\"MENSUAL\"),N17,\"\"))))","v":""},{"$f":"IF(AND($N$23=\"ANUAL\",$J$23=\"MENSUAL\"),$N$17/12+H50,IF(AND(N23=\"SEMESTRAL\",J23=\"MENSUAL\"),N17/6+H50,IF(AND(N23=\"TRIMESTRAL\",J23=\"MENSUAL\"),N17/3+H50,IF(AND(N23=\"MENSUAL\",J23=\"MENSUAL\"),N17,\"\"))))","v":""},{"$f":"IF(AND($N$23=\"ANUAL\",$J$23=\"MENSUAL\"),$N$17/12+I50,IF(AND(N23=\"SEMESTRAL\",J23=\"MENSUAL\"),N17/6,IF(AND(N23=\"TRIMESTRAL\",J23=\"MENSUAL\"),N17/3,IF(AND(N23=\"MENSUAL\",J23=\"MENSUAL\"),N17,\"\"))))","v":""},{"$f":"IF(AND($N$23=\"ANUAL\",$J$23=\"MENSUAL\"),$N$17/12+J50,IF(AND(N23=\"SEMESTRAL\",J23=\"MENSUAL\"),N17/6+J50,IF(AND(N23=\"TRIMESTRAL\",J23=\"MENSUAL\"),N17/3+J50,IF(AND(N23=\"MENSUAL\",J23=\"MENSUAL\"),N17,\"\"))))","v":""},{"$f":"IF(AND($N$23=\"ANUAL\",$J$23=\"MENSUAL\"),$N$17/12+K50,IF(AND(N23=\"SEMESTRAL\",J23=\"MENSUAL\"),N17/6+K50,IF(AND(N23=\"TRIMESTRAL\",J23=\"MENSUAL\"),N17/3+K50,IF(AND(N23=\"MENSUAL\",J23=\"MENSUAL\"),N17,\"\"))))","v":""},{"$f":"IF(AND($N$23=\"ANUAL\",$J$23=\"MENSUAL\"),$N$17/12+L50,IF(AND(N23=\"SEMESTRAL\",J23=\"MENSUAL\"),N17/6+L50,IF(AND(N23=\"TRIMESTRAL\",J23=\"MENSUAL\"),N17/3,IF(AND(N23=\"MENSUAL\",J23=\"MENSUAL\"),N17,\"\"))))","v":""},{"$f":"IF(AND($N$23=\"ANUAL\",$J$23=\"MENSUAL\"),$N$17/12+M50,IF(AND(N23=\"SEMESTRAL\",J23=\"MENSUAL\"),N17/6+M50,IF(AND(N23=\"TRIMESTRAL\",J23=\"MENSUAL\"),N17/3+M50,IF(AND(N23=\"MENSUAL\",J23=\"MENSUAL\"),N17,\"\"))))","v":""},{"$f":"IF(AND($N$23=\"ANUAL\",$J$23=\"MENSUAL\"),$N$17/12+N50,IF(AND(N23=\"SEMESTRAL\",J23=\"MENSUAL\"),N17/6+N50,IF(AND(N23=\"TRIMESTRAL\",J23=\"MENSUAL\"),N17/3+N50,IF(AND(N23=\"MENSUAL\",J23=\"MENSUAL\"),N17,\"\"))))","v":""}]
[]
[null,null,"NIVEL DE SEGREGACIÓN *"]
[null,null,"UNIDAD SEGREGADA (Ej. Facultad, Programa Académico, Área)",null,null,null,"RESULTADO",null,null,null,"ANALISIS DE DATOS SEGREGADO"]
[null,null,"SOACHA",null,null,null,100,null,null,null,"Una vez se realiza la Reevaluación de proveedores para el segundo semestre del año en curso, se tiene como resultado el 100 %, que corresponde a 10 Reevaluaciones  con calificaciones mayor a 90, donde es posible evidenciar que la selección de proveedores en la Extensión Soacha es muy confiable"]
[null,null,"FACATATIVA",null,null,null,100,null,null,null,"Se tomaron las 18 Reevaluaciones de proveedores, que se habían realizado dentro del periodo entre Julio y Diciembre del 2023, las cuales en su calificación se encuentra lo siguiente. la más bajita con un 75% en el proceso FA-OCC-008-2023 que tiene como objeto \"CONTRATAR EL SUMINISTRO DE PINTURAS Y ARTICULOS RELACIONADOS PARA LA UNIVERSIDAD DE CUNDINAMARCA EXTENSIÓN FACATATIVÁ\" en el cual se evidencia que el proveedor no cumplió a cabalidad con las obligaciones requeridas en el contrato. por lo contrario en su mayoría los proveedores de Facatativá cumplen con un 100% en las evaluaciones."]
[null,null,"UBATE",null,null,null,94,null,null,null,"De acuerdo a los resultados obtenidos en la medición del indicador, se establece que 15 de los 17 evaluados presentan calificación superior a 90 ubicándose en el rango de MUY CONFIABLE, de los dos restantes uno se ubica en el rango de CONFIABLE, y el otro en CONDICIONAL,  alcanzando de esta manera un cumplimiento del 94% encontrándose dentro de la meta ponderada, lo que evidencia un nivel de satisfacción FAVORABLE por parte de los supervisores durante el II- 2023."]
[null,null,"GIRARDOT",null,null,null,100,null,null,null,"Una vez realizada la medición  del indicador de reevaluación de proveedores  para el IIIPA-2023 por la sede Girardot, se obtuvo como resultado un valor del 100%  que corresponde a 4 reevaluaciones  con calificación del 100% en una muestra de 4 reevaluaciones allegadas en este semestre. se puede indicar  que del total de reevaluaciones recepcionadas las calificaciones están soportadas en el cumplimiento de los plazos precontractuales y poscontractuales , disponibilidad del servicio y el cumplimiento de especificaciones técnicas. "]
[null,null,"CHIA-ZIPA",null,null,null,100,null,null,null,"Se realiza la verificación de la evaluación de proveedores donde el 100% obtuvo calificación excelente"]
[]
[]
[]
[]
[]
[]
[]
[]
[]
[]
[]
[]
[]
[null,null,null,null,null,null,"Estratégico",null,null,"Eficacia"]
[null,null,null,null,null,null,"Misional",null,null,"Eficiencia"]
[null,null,null,null,null,null,"Apoyo",null,null,"Acreditación"]
[null,null,null,null,null,null,"Seguimiento, Medición, Análisis y Evaluación",null,null,"Positiva"]
[null,null,null,null,null,null,"Direccionamiento Estratégico",null,null,"Negativa"]
[null,null,null,null,null,null,"Planeación Institucional",null,null,"Por Unidad Regional"]
[null,null,null,null,null,null,"Proyectos Especiales y Relaciones Interinstitucionales",null,null,"Por Facultad"]
[null,null,null,null,null,null,"Sistemas Integrados",null,null,"Por Programa Académico"]
[null,null,null,null,null,null,"Autoevaluación y Acreditación",null,null,"Por área"]
[null,null,null,null,null,null,"Comunicaciones",null,null,"Por Laboratorio"]
[null,null,null,null,null,null,"Formación y Aprendizaje",null,null,"Otros"]
[null,null,null,null,null,null,"Ciencia, Tecnología e Innovación",null,null,"No Aplica"]
[null,null,null,null,null,null,"Interacción Social Universitaria"]
[null,null,null,null,null,null,"Bienestar Universitario"]
[null,null,null,null,null,null,"Admisiones y Registro"]
[null,null,null,null,null,null,"Graduados"]
[null,null,null,null,null,null,"Dialogando con el Mundo"]
[null,null,null,null,null,null,"Talento Humano"]
[null,null,null,null,null,null,"Jurídica"]
[null,null,null,null,null,null,"Financiera"]
[null,null,null,null,null,null,"Sistemas y Tecnología"]
[null,null,null,null,null,null,"Bienes y Servicios"]
[null,null,null,null,null,null,"Documental"]
[null,null,null,null,null,null,"Apoyo Académico"]
[null,null,null,null,null,null,"Control Interno"]
[null,null,null,null,null,null,"Control Disciplinario"]
[null,null,null,null,null,null,"Servicio de Atención al Ciudadano"]

{"sheet":"HOJA-9","index":8,"n_rows":3,"n_cols":8,"rows_kept":3,"cut":false,"hidden":false,"merged":[]}
["REFERENCIA","FUSA","CHIA","UBATE","SOACHA","GIRARDOT","FACATATIVA"]
["Total proveedores calificados mayor a 70 *100 ",107,12,16,10,4,18,{"$f":"+B2+C2+D2+E2+F2+G2","v":167}]
["Total proveedores ",109,12,17,10,4,18,{"$f":"+B3+C3+D3+E3+F3+G3","v":170}]

{"sheet":"ABS-10","index":9,"n_rows":98,"n_cols":15,"rows_kept":98,"cut":false,"hidden":false,"merged":[[58,2,58,5],[58,6,58,9],[58,10,58,14],[59,2,59,5],[59,6,59,9],[59,10,59,14],[56,2,56,5],[56,6,56,9],[56,10,56,14],[57,2,57,5],[57,6,57,9],[57,10,57,14],[54,2,54,5],[54,6,54,9],[54,10,54,14],[55,2,55,5],[55,6,55,9],[55,10,55,14],[53,2,53,5],[53,6,53,9],[53,10,53,14],[26,15,27,15],[27,9,32,14],[33,9,33,14],[34,9,39,14],[40,9,40,14],[41,9,41,14],[44,2,44,14],[51,2,51,14],[52,2,52,5],[52,6,52,9],[52,10,52,14],[22,13,23,14],[23,2,23,3],[23,4,23,6],[25,2,25,14],[26,2,42,8],[26,9,26,14],[42,9,42,14],[22,2,22,3],[22,4,22,6],[22,7,23,8],[22,9,23,10],[22,11,23,12],[19,2,21,3],[19,4,21,6],[19,7,21,8],[19,9,21,10],[19,11,19,14],[16,15,17,15],[17,2,18,3],[17,4,17,5],[17,6,17,10],[17,11,18,12],[17,13,18,14],[18,4,18,5],[18,6,18,10],[16,2,16,3],[16,4,16,6],[16,7,16,8],[16,9,16,10],[16,11,16,12],[16,13,16,14],[15,2,15,14],[8,2,8,14],[9,2,10,14],[11,2,11,3],[11,4,11,7],[11,8,11,9],[11,10,11,14],[12,2,12,3],[12,4,12,14],[13,2,13,3],[13,4,13,14],[14,2,14,14],[1,1,3,2],[4,2,7,3],[4,4,4,11],[4,12,4,14],[5,4,5,11],[5,12,5,14],[6,4,7,11],[6,12,6,14],[7,12,7,14]]}
[]
[null,"      REGRESAR"]
[]
[]
[null,null,null,null,"MACROPROCESO ESTRATÉGICO",null,null,null,null,null,null,null,"CÓDIGO: ESGr027"]
[null,null,null,null,"PROCESO GESTIÓN SISTEMAS INTEGRADOS",null,null,null,null,null,null,null,"VERSIÓN: 8"]
[null,null,null,null,"MATRIZ DE MEDICIÓN Y SEGUIMIENTO A LOS PROCESOS DE GESTIÓN",null,null,null,null,null,null,null,"VIGENCIA: 2023-07-28"]
[null,null,null,null,null,null,null,null,null,null,null,null,"PÁGINA: 6 de 8"]
[]
[null,null,"FICHA DE INDICADOR"]
[]
[null,null,"MACROPROCESO",null,"Apoyo",null,null,null,"NOMBRE DEL INDICADOR",null,"Tasa de procesos desiertos"]
[null,null,"PROCESO GESTIÓN",null,"Bienes y Servicios"]
[null,null,"RESPONSABLE DE MEDICIÓN",null,"Jefe de la Oficina de Compras"]
[]
[null,null,"1. COMPORTAMIENTO DE INDICADOR"]
[null,null,"CLASIFICACIÓN DE LA MEDICIÓN",null,1,null,null,"TIPO DE INDICADOR",null,"Eficacia",null,"META",null,0.35]
[null,null,"FORMULA",null,"NUMERADOR",null,"Número procesos que se dan por desiertos durante el periodo * 100",null,null,null,null,"UNIDAD DE MEDIDA",null,"Porcentual"]
[null,null,null,null,"DENOMINADOR",null,"Total de procesos finalizados con o sin éxito en el periodo"]
[null,null,"TENDENCIA",null,"Negativa",null,null,"NIVEL DE SEGREGACIÓN *",null,"Por Unidad Regional",null,"ESCALA"]
[null,null,null,null,null,null,null,null,null,null,null,"Deficiente","Aceptable","Bueno","Excelente"]
[null,null,null,null,null,null,null,null,null,null,null,"100% - 42,1%","42% - 35,1%","35% - 20,1%","20% - 0%"]
[null,null,"ORIGEN DE DATOS NUMERADOR",null,"Data Integradoc",null,null,"FRECUENCIA DE LA MEDICIÓN",null,"TRIMESTRAL",null,"FRECUENCIA DE RESULTADO",null,"TRIMESTRAL"]
[null,null,"ORIGEN DE DATOS DENOMINADOR",null,"Data Integradoc"]
[]
[null,null,"RESULTADOS"]
[null,null,null,null,null,null,null,null,null,"ANÁLISIS DE DATOS"]
[null,null,null,null,null,null,null,null,null,"Considerando el análisis de todos los contratos ejecutados durante el cuarto trimestre de 2023, se ha obtenido un resultado del 35% para el conjunto de la sede principal, seccionales y extensiones. Este resultado se clasifica como \"BUENO\" dentro de nuestra escala y equivale a un total de 251 procesos completados, ya sea exitosamente o no, durante el trimestre, de una muestra de 87 procesos declarados desiertos. En relación con los procesos que han sido declarados desiertos, las razones principales son las siguientes:\n\n    Exceder el presupuesto oficial o los precios de referencia, de ser aplicable.\n    Por causales de rechazo identificadas como número 11, 2 y 12.\n    Por falta de presentación de cotizaciones por parte de los proveedores.\n    Subsanabilidad incompleta o falta de subsanación por parte de los oferentes.\n\nEstos motivos constituyen las principales causas detrás de la declaración de desiertos en los procesos de contratación durante el trimestre mencionado. Es importante tener en cuenta estas consideraciones al analizar el desempeño y  mejorar los resultados en futuros procesos de contratación."]
[]
[]
[]
[]
[]
[null,null,null,null,null,null,null,null,null,"ACCIÓN FORMULADA"]
[null,null,null,null,null,null,null,null,null,"Con el objetivo de mitigar los procesos declarados desiertos, se ha implementado la medida de brindar apoyo a las áreas solicitantes durante la etapa de justificación de la necesidad. Esta iniciativa busca fortalecer la comunicación y colaboración entre las áreas involucradas, asegurando que las especificaciones y requisitos del proceso de contratación se ajusten de manera adecuada a las necesidades reales."]
[]
[]
[]
[]
[]
[null,null,null,null,null,null,null,null,null,"RESPONSABLE "]
[null,null,null,null,null,null,null,null,null,{"$f":"E14","v":"Jefe de la Oficina de Compras"}]
[]
[]
[null,null,"PERIODO DE EVALUACIÓN"]
[null,null,"MES",{"$f":"IF(J23=\"MENSUAL\",\"ENERO\",IF(J23=\"TRIMESTRAL\",\"MARZO\",IF(J23=\"SEMESTRAL\",\"JUNIO\",IF(J23=\"ANUAL\",YEAR(TODAY()),\"\"))))","v":"MARZO"},{"$f":"IF(J23=\"MENSUAL\",\"FEBRERO\",IF(J23=\"TRIMESTRAL\",\"JUNIO\",IF(J23=\"SEMESTRAL\",\"DICIEMBRE\",\"\")))","v":"JUNIO"},{"$f":"IF(J23=\"MENSUAL\",\"MARZO\",IF(J23=\"TRIMESTRAL\",\"SEPTIEMBRE\",\"\"))","v":"SEPTIEMBRE"},{"$f":"IF(J23=\"MENSUAL\",\"ABRIL\",IF(J23=\"TRIMESTRAL\",\"DICIEMBRE\",\"\"))","v":"DICIEMBRE"},{"$f":"IF(J23=\"MENSUAL\",\"MAYO\",\"\")","v":""},{"$f":"IF(J23=\"MENSUAL\",\"JUNIO\",\"\")","v":""},{"$f":"IF(J23=\"MENSUAL\",\"JULIO\",\"\")","v":""},{"$f":"IF(J23=\"MENSUAL\",\"AGOSTO\",\"\")","v":""},{"$f":"IF(J23=\"MENSUAL\",\"SEPTIEMBRE\",\"\")","v":""},{"$f":"IF(J23=\"MENSUAL\",\"OCTUBRE\",\"\")","v":""},{"$f":"IF(J23=\"MENSUAL\",\"NOVIEMBRE\",\"\")","v":""},{"$f":"IF(J23=\"MENSUAL\",\"DICIEMBRE\",\"\")","v":""}]
[null,null,{"$f":"G18","v":"Número procesos que se dan por desiertos durante el periodo * 100"},24,61,78,88]
[null,null,{"$f":"G19","v":"Total de procesos finalizados con o sin éxito en el periodo"},63,168,204,252]
[null,null,"VALOR ",{"$f":"IFERROR(IF($E$17=1,D47/D48,IF($E$17=2,D47,\"\")),\"\")","v":0.38095238095238093},{"$f":"IFERROR(IF($E$17=1,E47/E48,IF($E$17=2,E47,\"\")),\"\")","v":0.36309523809523808},{"$f":"IFERROR(IF($E$17=1,F47/F48,IF($E$17=2,F47,\"\")),\"\")","v":0.38235294117647056},0.34920634920634919,"","","","","","","",""]
[null,null,"META PONDERADA",{"$f":"IF(AND(N23=\"ANUAL\",J23=\"MENSUAL\"),N17/12,IF(AND(N23=\"ANUAL\",J23=\"TRIMESTRAL\"),N17/4,IF(AND(N23=\"ANUAL\",J23=\"SEMESTRAL\"),N17/2,IF(AND(N23=\"ANUAL\",J23=\"ANUAL\"),N17,IF(AND(N23=\"SEMESTRAL\",J23=\"MENSUAL\"),N17/6,IF(AND(N23=\"SEMESTRAL\",J23=\"TRIMESTRAL\"),N17/2,IF(AND(N23=\"SEMESTRAL\",J23=\"SEMESTRAL\"),N17,IF(AND(N23=\"SEMESTRAL\",J23=\"ANUAL\"),\"REVISAR FRECUENCIAS\",IF(AND(N23=\"TRIMESTRAL\",J23=\"MENSUAL\"),N17/3,IF(AND(N23=\"TRIMESTRAL\",J23=\"TRIMESTRAL\"),N17,IF(AND(N23=\"TRIMESTRAL\",J23=\"SEMESTRAL\"),\"REVISAR FRECUENCIAS\",IF(AND(N23=\"TRIMESTRAL\",J23=\"ANUAL\"),\"REVISAR FRECUENCIAS\",IF(AND(N23=\"MENSUAL\",J23=\"MENSUAL\"),N17,IF(AND(N23=\"MENSUAL\",J23=\"TRIMESTRAL\"),\"REVISAR FRECUENCIAS\",IF(AND(N23=\"MENSUAL\",J23=\"SEMESTRAL\"),\"REVISAR FRECUENCIAS\",IF(AND(N23=\"MENSUAL\",J23=\"ANUAL\"),\"REVISAR FRECUENCIAS\",\"\"))))))))))))))))","v":0.35},{"$f":"IF(AND(N23=\"ANUAL\",J23=\"MENSUAL\"),N17/12+D50,IF(AND(N23=\"ANUAL\",J23=\"TRIMESTRAL\"),N17/4+D50,IF(AND(N23=\"ANUAL\",J23=\"SEMESTRAL\"),N17/2+D50,IF(AND(N23=\"SEMESTRAL\",J23=\"MENSUAL\"),N17/6+D50,IF(AND(N23=\"SEMESTRAL\",J23=\"TRIMESTRAL\"),N17/2+D50,IF(AND(N23=\"SEMESTRAL\",J23=\"SEMESTRAL\"),N17,IF(AND(N23=\"TRIMESTRAL\",J23=\"MENSUAL\"),N17/3+D50,IF(AND(N23=\"TRIMESTRAL\",J23=\"TRIMESTRAL\"),N17,IF(AND(N23=\"MENSUAL\",J23=\"MENSUAL\"),N17,\"\")))))))))","v":0.35},{"$f":"IF(AND(N23=\"ANUAL\",J23=\"MENSUAL\"),N17/12+E50,IF(AND(N23=\"ANUAL\",J23=\"TRIMESTRAL\"),N17/4+E50,IF(AND(N23=\"SEMESTRAL\",J23=\"MENSUAL\"),N17/6+E50,IF(AND(N23=\"SEMESTRAL\",J23=\"TRIMESTRAL\"),N17/2,IF(AND(N23=\"TRIMESTRAL\",J23=\"MENSUAL\"),N17/3+E50,IF(AND(N23=\"TRIMESTRAL\",J23=\"TRIMESTRAL\"),N17,IF(AND(N23=\"MENSUAL\",J23=\"MENSUAL\"),N17,\"\")))))))","v":0.35},{"$f":"IF(AND(N23=\"ANUAL\",J23=\"MENSUAL\"),N17/12+F50,IF(AND(N23=\"ANUAL\",J23=\"TRIMESTRAL\"),N17/4+F50,IF(AND(N23=\"SEMESTRAL\",J23=\"MENSUAL\"),N17/6+F50,IF(AND(N23=\"SEMESTRAL\",J23=\"TRIMESTRAL\"),N17/2+F50,IF(AND(N23=\"TRIMESTRAL\",J23=\"MENSUAL\"),N17/3,IF(AND(N23=\"TRIMESTRAL\",J23=\"TRIMESTRAL\"),N17,IF(AND(N23=\"MENSUAL\",J23=\"MENSUAL\"),N17,\"\")))))))","v":0.35},{"$f":"IF(AND($N$23=\"ANUAL\",$J$23=\"MENSUAL\"),$N$17/12+G50,IF(AND(N23=\"SEMESTRAL\",J23=\"MENSUAL\"),N17/6+G50,IF(AND(N23=\"TRIMESTRAL\",J23=\"MENSUAL\"),N17/3+G50,IF(AND(N23=\"MENSUAL\",J23=\"MENSUAL\"),N17,\"\"))))","v":""},{"$f":"IF(AND($N$23=\"ANUAL\",$J$23=\"MENSUAL\"),$N$17/12+H50,IF(AND(N23=\"SEMESTRAL\",J23=\"MENSUAL\"),N17/6+H50,IF(AND(N23=\"TRIMESTRAL\",J23=\"MENSUAL\"),N17/3+H50,IF(AND(N23=\"MENSUAL\",J23=\"MENSUAL\"),N17,\"\"))))","v":""},{"$f":"IF(AND($N$23=\"ANUAL\",$J$23=\"MENSUAL\"),$N$17/12+I50,IF(AND(N23=\"SEMESTRAL\",J23=\"MENSUAL\"),N17/6,IF(AND(N23=\"TRIMESTRAL\",J23=\"MENSUAL\"),N17/3,IF(AND(N23=\"MENSUAL\",J23=\"MENSUAL\"),N17,\"\"))))","v":""},{"$f":"IF(AND($N$23=\"ANUAL\",$J$23=\"MENSUAL\"),$N$17/12+J50,IF(AND(N23=\"SEMESTRAL\",J23=\"MENSUAL\"),N17/6+J50,IF(AND(N23=\"TRIMESTRAL\",J23=\"MENSUAL\"),N17/3+J50,IF(AND(N23=\"MENSUAL\",J23=\"MENSUAL\"),N17,\"\"))))","v":""},{"$f":"IF(AND($N$23=\"ANUAL\",$J$23=\"MENSUAL\"),$N$17/12+K50,IF(AND(N23=\"SEMESTRAL\",J23=\"MENSUAL\"),N17/6+K50,IF(AND(N23=\"TRIMESTRAL\",J23=\"MENSUAL\"),N17/3+K50,IF(AND(N23=\"MENSUAL\",J23=\"MENSUAL\"),N17,\"\"))))","v":""},{"$f":"IF(AND($N$23=\"ANUAL\",$J$23=\"MENSUAL\"),$N$17/12+L50,IF(AND(N23=\"SEMESTRAL\",J23=\"MENSUAL\"),N17/6+L50,IF(AND(N23=\"TRIMESTRAL\",J23=\"MENSUAL\"),N17/3,IF(AND(N23=\"MENSUAL\",J23=\"MENSUAL\"),N17,\"\"))))","v":""},{"$f":"IF(AND($N$23=\"ANUAL\",$J$23=\"MENSUAL\"),$N$17/12+M50,IF(AND(N23=\"SEMESTRAL\",J23=\"MENSUAL\"),N17/6+M50,IF(AND(N23=\"TRIMESTRAL\",J23=\"MENSUAL\"),N17/3+M50,IF(AND(N23=\"MENSUAL\",J23=\"MENSUAL\"),N17,\"\"))))","v":""},{"$f":"IF(AND($N$23=\"ANUAL\",$J$23=\"MENSUAL\"),$N$17/12+N50,IF(AND(N23=\"SEMESTRAL\",J23=\"MENSUAL\"),N17/6+N50,IF(AND(N23=\"TRIMESTRAL\",J23=\"MENSUAL\"),N17/3+N50,IF(AND(N23=\"MENSUAL\",J23=\"MENSUAL\"),N17,\"\"))))","v":""}]
[]
[null,null,"NIVEL DE SEGREGACIÓN *"]
[null,null,"UNIDAD SEGREGADA (Ej. Facultad, Programa Académico, Área)",null,null,null,"RESULTADO",null,null,null,"ANALISIS DE DATOS SEGREGADO"]
[null,null,"SOACHA",null,null,null,14,null,null,null,"La Universidad de Cundinamarca Extensión Soacha presento un (1) proceso desierto en el IV trimestre del año 2024 el cual representa un 14,28%, lo que nos hace lleva a cumplir la meta de estar por debajo del 35% y estar en una escala de Excelente. "]
[null,null,"FACATATIVA",null,null,null,56,null,null,null,"En el IV trimestre del año 2023 se realizaron 9 contratos en total de los cuales 5 procesos se declararon desiertos debido a que los oferentes que se presentaron no cumplieron a cabalidad con los documentos necesarios para poder realizar un contrato con la universidad de Cundinamarca. y en el proceso FA-CD-036-2023  no se presentó ningún oferente las dos primeras veces que se publico el proceso,  FA-CD-034-2023 no se presento ningún oferente, FA-CD-023-2023 no se presento ningún oferente y FA-CD-033-2023 El Oferente que se presento no cumplía con los documentos establecido en el ABS."]
[null,null,"UBATE",null,null,null,39,null,null,null,"De acuerdo a los resultados obtenidos, se establece que la tasa de procesos desiertos de la Seccional Ubaté para el cuarto trimestre de 2023 se encuentra en 39%, ubicándose en aceptable según la escala de eficacia. Los factores que más predominan en la elevación de la tasa de procesos desiertos, es la no presentación de cotizantes, seguido de la no subsanación debida de requisitos, toda vez que en muchos casos no cumplen con los requisitos de subsanabilidad.  Cómo último factor se evidencia el rechazo de propuestas por incurrir en las causales de  rechazo. "]
[null,null,"GIRARDOT",null,null,null,48,null,null,null,"Teniendo en cuenta todos los contratos efectuados en el trimestre del 2023 se obtuvo como resultado un valor del 48% ubicándonos en la escala como Deficientes; que corresponde a 23 procesos finalizados con o sin éxito en el trimestre sobre una muestra de 11 proceso declarados desiertos                                                                                                                                                                                                              1. Los procesos declarados desiertos corresponde a procesos que se publicaron en la pagina institucional de la Universidad hasta en 5 oportunidades  y donde no se presentaron oferentes en los procesos.       "]
[null,null,"CHIA-ZIPA",null,null,null,0,null,null,null,"no se presentaron procesos desiertos en el trimestre"]
[]
[]
[]
[]
[]
[]
[]
[]
[]
[]
[]
[]
[]
[null,null,null,null,null,null,"Estratégico",null,null,"Eficacia"]
[null,null,null,null,null,null,"Misional",null,null,"Eficiencia"]
[null,null,null,null,null,null,"Apoyo",null,null,"Acreditación"]
[null,null,null,null,null,null,"Seguimiento, Medición, Análisis y Evaluación",null,null,"Positiva"]
[null,null,null,null,null,null,"Direccionamiento Estratégico",null,null,"Negativa"]
[null,null,null,null,null,null,"Planeación Institucional",null,null,"Por Unidad Regional"]
[null,null,null,null,null,null,"Proyectos Especiales y Relaciones Interinstitucionales",null,null,"Por Facultad"]
[null,null,null,null,null,null,"Sistemas Integrados",null,null,"Por Programa Académico"]
[null,null,null,null,null,null,"Autoevaluación y Acreditación",null,null,"Por área"]
[null,null,null,null,null,null,"Comunicaciones",null,null,"Por Laboratorio"]
[null,null,null,null,null,null,"Formación y Aprendizaje",null,null,"Otros"]
[null,null,null,null,null,null,"Ciencia, Tecnología e Innovación",null,null,"No Aplica"]
[null,null,null,null,null,null,"Interacción Social Universitaria"]
[null,null,null,null,null,null,"Bienestar Universitario"]
[null,null,null,null,null,null,"Admisiones y Registro"]
[null,null,null,null,null,null,"Graduados"]
[null,null,null,null,null,null,"Dialogando con el Mundo"]
[null,null,null,null,null,null,"Talento Humano"]
[null,null,null,null,null,null,"Jurídica"]
[null,null,null,null,null,null,"Financiera"]
[null,null,null,null,null,null,"Sistemas y Tecnología"]
[null,null,null,null,null,null,"Bienes y Servicios"]
[null,null,null,null,null,null,"Documental"]
[null,null,null,null,null,null,"Apoyo Académico"]
[null,null,null,null,null,null,"Control Interno"]
[null,null,null,null,null,null,"Control Disciplinario"]
[null,null,null,null,null,null,"Servicio de Atención al Ciudadano"]

{"sheet":"HOJA-10","index":10,"n_rows":3,"n_cols":8,"rows_kept":3,"cut":false,"hidden":false,"merged":[]}
["REFERENCIA","FUSA","CHIA","UBATE","SOACHA","GIRARDOT","FACATATIVA"]
["Número procesos que se dan por desiertos durante el periodo * 100",62,0,9,1,11,5,{"$f":"SUM(B2:G2)","v":88}]
["Total de procesos finalizados con o sin éxito en el periodo",175,6,23,11,23,14,{"$f":"SUM(B3:G3)","v":252}]

{"sheet":"ABS-11","index":11,"n_rows":92,"n_cols":18,"rows_kept":92,"cut":false,"hidden":false,"merged":[[58,2,58,5],[58,6,58,9],[58,10,58,14],[59,2,59,5],[59,6,59,9],[59,10,59,14],[56,2,56,5],[56,6,56,9],[56,10,56,14],[57,2,57,5],[57,6,57,9],[57,10,57,14],[54,2,54,5],[54,6,54,9],[54,10,54,14],[55,2,55,5],[55,6,55,9],[55,10,55,14],[53,2,53,5],[53,6,53,9],[53,10,53,14],[26,15,27,15],[27,9,32,14],[33,9,33,14],[34,9,39,14],[40,9,40,14],[41,9,41,14],[44,2,44,14],[51,2,51,14],[52,2,52,5],[52,6,52,9],[52,10,52,14],[22,13,23,14],[23,2,23,3],[23,4,23,6],[25,2,25,14],[26,2,42,8],[26,9,26,14],[42,9,42,14],[22,2,22,3],[22,4,22,6],[22,7,23,8],[22,9,23,10],[22,11,23,12],[19,2,21,3],[19,4,21,6],[19,7,21,8],[19,9,21,10],[19,11,19,14],[16,15,17,15],[17,2,18,3],[17,4,17,5],[17,6,17,10],[17,11,18,12],[17,13,18,14],[18,4,18,5],[18,6,18,10],[16,2,16,3],[16,4,16,6],[16,7,16,8],[16,9,16,10],[16,11,16,12],[16,13,16,14],[15,2,15,14],[8,2,8,14],[9,2,10,14],[11,2,11,3],[11,4,11,7],[11,8,11,9],[11,10,11,14],[12,2,12,3],[12,4,12,14],[13,2,13,3],[13,4,13,14],[14,2,14,14],[1,1,3,2],[4,2,7,3],[4,4,4,11],[4,12,4,14],[5,4,5,11],[5,12,5,14],[6,4,7,11],[6,12,6,14],[7,12,7,14]]}
[]
[null,"      REGRESAR"]
[]
[]
[null,null,null,null,"MACROPROCESO ESTRATÉGICO",null,null,null,null,null,null,null,"CÓDIGO: ESGr027"]
[null,null,null,null,"PROCESO GESTIÓN SISTEMAS INTEGRADOS",null,null,null,null,null,null,null,"VERSIÓN: 8"]
[null,null,null,null,"MATRIZ DE MEDICIÓN Y SEGUIMIENTO A LOS PROCESOS DE GESTIÓN",null,null,null,null,null,null,null,"VIGENCIA: 2023-07-28"]
[null,null,null,null,null,null,null,null,null,null,null,null,"PÁGINA: 7 de 8"]
[]
[null,null,"FICHA DE INDICADOR"]
[]
[null,null,"MACROPROCESO",null,"Apoyo",null,null,null,"NOMBRE DEL INDICADOR",null,"Cumplimiento a la planificación de salidas programadas por parte de la academia. "]
[null,null,"PROCESO GESTIÓN",null,"Bienes y Servicios"]
[null,null,"RESPONSABLE DE MEDICIÓN",null,"Jefe de Recursos Físicos y Servicios Generales"]
[]
[null,null,"1. COMPORTAMIENTO DE INDICADOR",null,null,null,null,null,null,null,null,null,null,null,null,null,null,"link de la data"]
[null,null,"CLASIFICACIÓN DE LA MEDICIÓN",null,2,null,null,"TIPO DE INDICADOR",null,"Eficacia",null,"META",null,0.7,null,null,null,"https://app.powerbi.com/view?r=eyJrIjoiNjQxYWU4MTEtYmFiZC00MDJjLThlYzMtMDViZmYyYjlkYjY1IiwidCI6IjA3ZGE2N2EwLTFmNDMtNGU4Yy05NzdmLTVmODhiNjQ3MGVlNiIsImMiOjR9"]
[null,null,"FORMULA",null,"NUMERADOR",null,"# total de salidas académicas programadas atendidas * 100",null,null,null,null,"UNIDAD DE MEDIDA",null,"Porcentaje"]
[null,null,null,null,"DENOMINADOR",null,"#total de salidas académicas programadas - # salidas académicas canceladas."]
[null,null,"TENDENCIA",null,"Positiva",null,null,"NIVEL DE SEGREGACIÓN *",null,"Por Unidad Regional",null,"ESCALA"]
[null,null,null,null,null,null,null,null,null,null,null,"Deficiente","Aceptable","Bueno","Excelente"]
[null,null,null,null,null,null,null,null,null,null,null,"0% - 50%","50,1% - 60%","60,1% - 70%","70,1% - 100%"]
[null,null,"ORIGEN DE DATOS NUMERADOR",null,"Actas y adendas de salidas académicas.",null,null,"FRECUENCIA DE LA MEDICIÓN",null,"SEMESTRAL",null,"FRECUENCIA DE RESULTADO",null,"SEMESTRAL"]
[null,null,"ORIGEN DE DATOS DENOMINADOR",null,"Planilla de seguimiento."]
[]
[null,null,"RESULTADOS"]
[null,null,null,null,null,null,null,null,null,"ANÁLISIS DE DATOS"]
[null,null,null,null,null,null,null,null,null,"Para el segundo semestre del año 2023, la academia aprobó un total de 191 salidas académicas y/o experiencias formativas mediante el acta 003 de 2022. Sin embargo, a través de actas o adendas posteriores, se realizó el aplazamiento o cancelación de 48 salidas. Como resultado, se confirmó la realización de 143 salidas aprobadas por la academia.\n\nEs importante destacar que la Jefatura de Recursos Físicos y Servicios Generales logró atender exitosamente las 143 salidas aprobadas y confirmadas, lo que representa un cumplimiento del 100% en relación a las salidas programadas y ejecutadas."]
[]
[]
[]
[]
[]
[null,null,null,null,null,null,null,null,null,"ACCIÓN FORMULADA"]
[null,null,null,null,null,null,null,null,null,"Es importante mencionar, que se cumple con la meta establecida en el porcentaje de eficacia dada las salidas académicas y/o experiencias formativas,  sin embargo, desde la Oficina de Recursos Físicos y Servicios Generales, realizamos la siguiente recomendación al área académica,  en cuanto al fortalecimiento o mejora de la programación de las salidas académicas y/o experiencias formativas, toda vez que, las modificaciones de último momento ocasionan contratiempos en los procedimientos internos del área, además de la interacción con los demás procesos para la buena ejecución de las  salidas académicas y/o experiencias formativas  y también pueden dar lugar a situaciones que afecten negativamente el patrimonio, lo cual podría generar riesgos la institución. "]
[]
[]
[]
[]
[]
[null,null,null,null,null,null,null,null,null,"RESPONSABLE "]
[null,null,null,null,null,null,null,null,null,"Jefe de Recursos Físicos y Servicios Generales."]
[]
[]
[null,null,"PERIODO DE EVALUACIÓN"]
[null,null,"MES","JUNIO","DICIEMBRE",null,null,null,null,{"$f":"IF(J23=\"MENSUAL\",\"JULIO\",\"\")","v":""},{"$f":"IF(J23=\"MENSUAL\",\"AGOSTO\",\"\")","v":""},{"$f":"IF(J23=\"MENSUAL\",\"SEPTIEMBRE\",\"\")","v":""},{"$f":"IF(J23=\"MENSUAL\",\"OCTUBRE\",\"\")","v":""},{"$f":"IF(J23=\"MENSUAL\",\"NOVIEMBRE\",\"\")","v":""},{"$f":"IF(J23=\"MENSUAL\",\"DICIEMBRE\",\"\")","v":""}]
[null,null,{"$f":"G18","v":"# total de salidas académicas programadas atendidas * 100"},186,143]
[null,null,{"$f":"G19","v":"#total de salidas académicas programadas - # salidas académicas canceladas."},{"$f":"239-53","v":186},{"$f":"191-48","v":143}]
[null,null,"VALOR ",{"$f":"+D47/D48","v":1},{"$f":"+E47/E48","v":1}]
[null,null,"META PONDERADA",0.7,0.7," ",null,{"$f":"IF(AND($N$23=\"ANUAL\",$J$23=\"MENSUAL\"),$N$17/12+G50,IF(AND(N23=\"SEMESTRAL\",J23=\"MENSUAL\"),N17/6+G50,IF(AND(N23=\"TRIMESTRAL\",J23=\"MENSUAL\"),N17/3+G50,IF(AND(N23=\"MENSUAL\",J23=\"MENSUAL\"),N17,\"\"))))","v":""},{"$f":"IF(AND($N$23=\"ANUAL\",$J$23=\"MENSUAL\"),$N$17/12+H50,IF(AND(N23=\"SEMESTRAL\",J23=\"MENSUAL\"),N17/6+H50,IF(AND(N23=\"TRIMESTRAL\",J23=\"MENSUAL\"),N17/3+H50,IF(AND(N23=\"MENSUAL\",J23=\"MENSUAL\"),N17,\"\"))))","v":""},{"$f":"IF(AND($N$23=\"ANUAL\",$J$23=\"MENSUAL\"),$N$17/12+I50,IF(AND(N23=\"SEMESTRAL\",J23=\"MENSUAL\"),N17/6,IF(AND(N23=\"TRIMESTRAL\",J23=\"MENSUAL\"),N17/3,IF(AND(N23=\"MENSUAL\",J23=\"MENSUAL\"),N17,\"\"))))","v":""},{"$f":"IF(AND($N$23=\"ANUAL\",$J$23=\"MENSUAL\"),$N$17/12+J50,IF(AND(N23=\"SEMESTRAL\",J23=\"MENSUAL\"),N17/6+J50,IF(AND(N23=\"TRIMESTRAL\",J23=\"MENSUAL\"),N17/3+J50,IF(AND(N23=\"MENSUAL\",J23=\"MENSUAL\"),N17,\"\"))))","v":""},{"$f":"IF(AND($N$23=\"ANUAL\",$J$23=\"MENSUAL\"),$N$17/12+K50,IF(AND(N23=\"SEMESTRAL\",J23=\"MENSUAL\"),N17/6+K50,IF(AND(N23=\"TRIMESTRAL\",J23=\"MENSUAL\"),N17/3+K50,IF(AND(N23=\"MENSUAL\",J23=\"MENSUAL\"),N17,\"\"))))","v":""},{"$f":"IF(AND($N$23=\"ANUAL\",$J$23=\"MENSUAL\"),$N$17/12+L50,IF(AND(N23=\"SEMESTRAL\",J23=\"MENSUAL\"),N17/6+L50,IF(AND(N23=\"TRIMESTRAL\",J23=\"MENSUAL\"),N17/3,IF(AND(N23=\"MENSUAL\",J23=\"MENSUAL\"),N17,\"\"))))","v":""},{"$f":"IF(AND($N$23=\"ANUAL\",$J$23=\"MENSUAL\"),$N$17/12+M50,IF(AND(N23=\"SEMESTRAL\",J23=\"MENSUAL\"),N17/6+M50,IF(AND(N23=\"TRIMESTRAL\",J23=\"MENSUAL\"),N17/3+M50,IF(AND(N23=\"MENSUAL\",J23=\"MENSUAL\"),N17,\"\"))))","v":""},{"$f":"IF(AND($N$23=\"ANUAL\",$J$23=\"MENSUAL\"),$N$17/12+N50,IF(AND(N23=\"SEMESTRAL\",J23=\"MENSUAL\"),N17/6+N50,IF(AND(N23=\"TRIMESTRAL\",J23=\"MENSUAL\"),N17/3+N50,IF(AND(N23=\"MENSUAL\",J23=\"MENSUAL\"),N17,\"\"))))","v":""}]
[]
[null,null,"NIVEL DE SEGREGACIÓN *"]
[null,null,"UNIDAD SEGREGADA (Ej. Facultad, Programa Académico, Área)",null,null,null,"RESULTADO",null,null,null,"ANALISIS DE DATOS SEGREGADO"]
[null,null,"Fusagasugá",null,null,null,{"$f":"58/(81-23)","v":1},null,null,null,"Para el segundo semestre del año 2023, la academia aprobó un total de 81 salidas académicas en la Sede Fusagasugá. La Jefatura de Recursos Físicos y Servicios Generales atendió un total de 58 de estas salidas académicas y/o experiencias formativas. Es importante señalar que, debido a cambios realizados por la academia mediante acta o adenda, se cancelaron o aplazaron un total de 23 salidas.\n\nEn base a lo anterior, podemos concluir que la Jefatura de Recursos Físicos y Servicios Generales cumplió con todas las actividades asignadas, alcanzando un cumplimiento del 100%."]
[null,null,"Ubaté",null,null,null,{"$f":"20/(28-8)","v":1},null,null,null,"Para el segundo semestre del año 2023, la academia aprobó un total de 28 salidas académicas en la Seccional Ubaté. La Jefatura de Recursos Físicos y Servicios Generales atendió un total de 20 de estas salidas académicas y/o experiencias formativas. Es importante señalar que, debido a cambios realizados por la academia mediante acta o adenda, se cancelaron o aplazaron un total de 8 salidas.\n\nEn base a lo anterior, podemos concluir que la Jefatura de Recursos Físicos y Servicios Generales cumplió con todas las actividades asignadas, alcanzando un cumplimiento del 100%."]
[null,null,"Girardot",null,null,null,{"$f":"23/(26-3)","v":1},null,null,null,"Para el segundo semestre del año 2023, la academia aprobó un total de 26 salidas académicas en la Seccional Girardot. La Jefatura de Recursos Físicos y Servicios Generales atendió un total de 23 de estas salidas académicas y/o experiencias formativas. Es importante señalar que, debido a cambios realizados por la academia mediante acta o adenda, se cancelaron o aplazaron un total de 3 salidas.\n\nEn base a lo anterior, podemos concluir que la Jefatura de Recursos Físicos y Servicios Generales cumplió con todas las actividades asignadas, alcanzando un cumplimiento del 100%."]
[null,null,"Chía",null,null,null,{"$f":"3/(3-0)","v":1},null,null,null,"Durante el segundo semestre del año 2023, en la extensión Chía, la academia aprobó un total de 3 salidas académicas. De estas, la Jefatura de Recursos Físicos y Servicios Generales pudo atender 3 salidas académicas y/o experiencias formativas. \n\nEn conclusión, la Jefatura de Recursos Físicos y Servicios Generales logró cumplir con todas las actividades asignadas, alcanzando un cumplimiento del 100%."]
[null,null,"Soacha",null,null,null,{"$f":"5/(6-1)","v":1},null,null,null,"Durante el segundo semestre del año 2023, en la extensión Soacha, la academia aprobó un total de 6 salidas académicas. De estas, la Jefatura de Recursos Físicos y Servicios Generales atendió 5 salidas académicas y/o experiencias formativas. Sin embargo, debido a modificaciones realizadas por la academia a través de actas o adendas, 1 salida fue cancelada.\n\nEn conclusión, la Jefatura de Recursos Físicos y Servicios Generales logró cumplir con todas las actividades asignadas, alcanzando un cumplimiento del 100%."]
[null,null,"Zipaquirá",null,null,null,{"$f":"6/(7-1)","v":1},null,null,null,"Durante el segundo semestre del año 2023, en la extensión Zipaquirá, la academia aprobó un total de 7 salidas académicas. La Jefatura de Recursos Físicos y Servicios Generales llevó a cabo 6 de estas salidas académicas y/o experiencias formativas. Sin embargo, debido a cambios realizados por la academia mediante acta se cancelo 1 salida.\n\nA pesar de los aplazamientos, la Jefatura de Recursos Físicos y Servicios Generales cumplió con las actividades asignadas, alcanzando un cumplimiento del 100%. Es relevante tener en cuenta que los aplazamientos a ultimo momento influyeron en la cantidad de salidas atendidas, pero la Jefatura respondió satisfactoriamente a las tareas asignadas."]
[null,null,"Facatativá",null,null,null,{"$f":"28/(40-12)","v":1},null,null,null,"Para el segundo semestre del año 2023, la academia aprobó un total de 40 salidas académicas en la Extensión Facatativá. La Jefatura de Recursos Físicos y Servicios Generales atendió un total de 28 de estas salidas académicas y/o experiencias formativas. Es importante señalar que, debido a cambios realizados por la academia mediante acta o adenda, se cancelaron o aplazaron un total de 12 salidas.\n\nEn base a lo anterior, podemos concluir que la Jefatura de Recursos Físicos y Servicios Generales cumplió con todas las actividades asignadas, alcanzando un cumplimiento del 100%."]
[]
[]
[]
[]
[]
[null,null,null,null,null,null,"Estratégico",null,null,"Eficacia"]
[null,null,null,null,null,null,"Misional",null,null,"Eficiencia"]
[null,null,null,null,null,null,"Apoyo",null,null,"Acreditación"]
[null,null,null,null,null,null,"Seguimiento, Medición, Análisis y Evaluación",null,null,"Positiva"]
[null,null,null,null,null,null,"Direccionamiento Estratégico",null,null,"Negativa"]
[null,null,null,null,null,null,"Planeación Institucional",null,null,"Por Unidad Regional"]
[null,null,null,null,null,null,"Proyectos Especiales y Relaciones Interinstitucionales",null,null,"Por Facultad"]
[null,null,null,null,null,null,"Sistemas Integrados",null,null,"Por Programa Académico"]
[null,null,null,null,null,null,"Autoevaluación y Acreditación",null,null,"Por área"]
[null,null,null,null,null,null,"Comunicaciones",null,null,"Por Laboratorio"]
[null,null,null,null,null,null,"Formación y Aprendizaje",null,null,"Otros"]
[null,null,null,null,null,null,"Ciencia, Tecnología e Innovación",null,null,"No Aplica"]
[null,null,null,null,null,null,"Interacción Social Universitaria"]
[null,null,null,null,null,null,"Bienestar Universitario"]
[null,null,null,null,null,null,"Admisiones y Registro"]
[null,null,null,null,null,null,"Graduados"]
[null,null,null,null,null,null,"Dialogando con el Mundo"]
[null,null,null,null,null,null,"Talento Humano"]
[null,null,null,null,null,null,"Jurídica"]
[null,null,null,null,null,null,"Financiera"]
[null,null,null,null,null,null,"Sistemas y Tecnología"]
[null,null,null,null,null,null,"Bienes y Servicios"]
[null,null,null,null,null,null,"Documental"]
[null,null,null,null,null,null,"Apoyo Académico"]
[null,null,null,null,null,null,"Control Interno"]
[null,null,null,null,null,null,"Control Disciplinario"]
[null,null,null,null,null,null,"Servicio de Atención al Ciudadano"]

{"sheet":"ACTUALIZACIONES","index":12,"n_rows":30,"n_cols":5,"rows_kept":30,"cut":false,"hidden":false,"merged":[[1,2,1,3],[1,1,4,1],[26,1,26,4],[29,1,29,4],[6,1,6,4],[3,2,4,3],[2,2,2,3]]}
[]
[null,null,"MACROPROCESO ESTRATÉGICO",null,"CÓDIGO: ESGr027"]
[null,null,"PROCESO GESTIÓN SISTEMAS INTEGRADOS - CALIDAD",null,"VERSIÓN: 8"]
[null,null,"MATRIZ DE MEDICIÓN Y SEGUIMIENTO A LOS PROCESOS DE GESTIÓN",null,"VIGENCIA: 2023-07-28"]
[null,null,null,null,"PÁGINA: 8 de 8"]
[]
[null,"CONTROL DE ACTUALIZACIONES"]
[null,"FECHA","DESCRIPCIÓN DE LA ACTUALIZACIÓN","RESPONSABLE","CARGO"]
[null,"2020-03-31","Se agregan dos nuevos indicadores para Acreditación \"Mantenimiento a infraestructura de espacios académicos\" y \"Renovación y actualización de obras con enfoque inclusivo (eliminación de barreras arquitectónicas)\"","Jaime Elder Acosta Ramírez","Coordinador de Calidad"]
[null,"2022-03-31","ABS-9 El indicador se unifica para llevarlo de manera general (antes se discriminaba en Fusagasugá, Ubaté y Girardot).\n\nABS-7: Renovación y actualización de obras con enfoque inclusivo \n(eliminación de barreras arquitectónicas), se inactiva al no tener contemplado realizar más obras con enfoque inclusivo.\n\nSe crea el indicador ABS-10: Tasa de Procesos desiertos, para la oficina de Compras","Ricardo Andrés Jiménez Nieto","Director de Bienes y Servicios"]
[null,"2023-03-27","ABS-1 Se reformula el indicador para revisar con lo estipulado en el cronograma de actividades de inventarios EPr001, con el fin de tener una medición más acertada a la realidad.  \nABS-2 Se incrementa la meta 100% y dentro de la medición se deberá revisar el tiempo estipulado para la entrega del indicador menor o igual a 15 días hábiles (ajustando la fórmula del indicador).\nABS-6 \"Mantenimiento a infraestructura física\", este indicador se inactiva porque actualmente se lleva por Plan de Acción.\nABS-9 De acuerdo al comportamiento en el indicador durante el 2022, se incrementa la meta al 95%,con respecto a la fórmula del indicador se hace un ajuste con respecto al \"total proveedores calificados mayor a 70\", para la vigencia de 202 estaba \"total proveedores calificados mayor a 80\", lo anterior obedece a lo establecido en los formatos ABSF049 y ABSF084.\n\nPara Recursos Físicos y Servicios Generales se crea el siguiente indicador:\nABS-11: Cumplimiento a la planificación de salidas programadas por la academia.","Ricardo Andrés Jiménez Nieto","Director de Bienes y Servicios"]
[null,"2023-09-29","De acuerdo a la solicitud realizada en correo del 26 de septiembre, se confirma que de acuerdo a la revisión de la Circular 006 en los tiempos determinados en la Fase II: Gestión Contractual, se ajusta en la formula del indicador en el numerador: (Total compras  de contratación directa atendidas en tiempo menor a 30 días) *100. Es importante anotar que en el tiempo que estaba aprobada la actual Circular, no se requirió el ajuste de la medición del indicador.","Ricardo Andrés Jiménez Nieto","Director de Bienes y Servicios"]
[null,"2023-11-07","De acuerdo a revisión de la medición de indicadores al III trimestre, se actualiza la base de datos para el numerador del indicador ABS-1 :  ABSr139 - Informe toma Física de inventarios","Ricardo Andrés Jiménez Nieto","Director de Bienes y Servicios"]
[]
[]
[]
[]
[]
[]
[]
[]
[]
[]
[]
[]
[]
[null,"Diagonal 18 No. 20-29 Fusagasugá – Cundinamarca\nTeléfono (601)  8281483 Línea Gratuita 018000180414\nwww.ucundinamarca.edu.co   E-mail:  info@ucundinamarca.edu.co\nNIT: 890.680.062-2                                                                             "]
[]
[]
[null,"Documento controlado por el Sistema de Gestión de la Calidad\nAsegúrese que corresponde a la última versión consultando el Portal Institucional"]

{"sheet":"ITEM","index":13,"n_rows":4,"n_cols":3,"rows_kept":4,"cut":false,"hidden":true,"merged":[]}
["MENSUAL",null,"NÚMERO"]
["TRIMESTRAL",null,"PORCENTAJE"]
["SEMESTRAL"]
["ANUAL"]